Cogmind - Beta 15 @@@ ROGUE MODE // 2025.06.03 @ 03:34:07 Player: Wyvric Result: Destroyed 0b10! Performance ------------- Evolutions (9) 4500 Regions Visited (26) 5200 Robots Destroyed (439) 2195 Value Destroyed (25332) 25332 Prototype IDs (237) 4740 Alien Tech Used (15) 3000 Bonus (41243) 41243 TOTAL SCORE: 86210 Bonus ------- Triggered Max Security 2000 High Alert Combat Kills 5812 Follower Combat Kills 3510 Network Hubs Disabled 800 Met Data Miner 300 Used Data Conduit 3000 Met Zhirov 300 Built Enhanced Grunts 300 A7 Reached Mainframe 300 Met R17 at Cetus 500 Used Core Reset Matrix 3000 Met R17 at Research 2000 Scanned by Researcher 500 Pursued by Intercept 2500 Met Sigix 2000 Activated Exoskeleton 3000 Escaped with Exo-Sigix 10000 Win 3000 Friendly Fire -1579 Cogmind --------- Core Integrity 1096/1600 Matter 125/300 Energy 1326/1349 System Corruption 0% +Membrane Temperature Cool (13) Movement Walking (128) Location Tau Ceti IV Orbit Parts ------- > --- POWER (3) -------- Neutrino-Quantum Core > --- PROPULSION (8) --- Biometal-Combat Exoskeleton > --- UTILITY (11) ----- Armored Scrap Engine Improved Coolant Injector Huge Storage Unit Spectral Analyzer Weapon Mount (fused) Advanced Weapon Cycler (fused) Experimental Phase Shifter Microwarp Drive > --- WEAPON (4) ------- Neutron Missile Launcher Hvy. Kinetic Hardcell Construct/C > --- INVENTORY (25) --- Reinforced Antimatter Reactor Improved Quantum Reactor High-density Centrium Leg Experimental Heat Sink Advanced Coolant Injector Experimental Matter Compressor (170) Long-range Sensor Array Launcher Loader Experimental Phase Shifter Advanced Force Field Core Regenerator Enhanced Hardcell Cannon Enhanced Hardcell Cannon Enhanced Force Lance Peak State ------------ > --- POWER ------------ Neutrino-Quantum Core > --- PROPULSION ------- Biometal-Combat Exoskeleton > --- UTILITY ---------- Armored Scrap Engine Improved Coolant Injector Huge Storage Unit Spectral Analyzer Weapon Mount Advanced Weapon Cycler Experimental Phase Shifter Microwarp Drive > --- WEAPON ----------- Neutron Missile Launcher Hvy. Kinetic Hardcell Construct/C > --- INVENTORY -------- Reinforced Antimatter Reactor Improved Quantum Reactor High-density Centrium Leg Experimental Heat Sink Advanced Coolant Injector Experimental Matter Compressor Long-range Sensor Array Launcher Loader Experimental Phase Shifter Advanced Force Field Core Regenerator Enhanced Hardcell Cannon Enhanced Hardcell Cannon Enhanced Force Lance [Rating: 238] Favorites ----------- Power Constructs Engine Subdweller Power Source Power Core Constructs Reactor Particle Reactor Propulsion Constructs Treads Light Treads Leg Constructs Wheel Compact Wheel Hover Unit Improved Antigrav System Flight Unit Xenon Bombardment Thruster Utility Armored Scrap Engine Device Armored Scrap Engine Storage Huge Storage Unit Processor Advanced Signal Interpreter Hackware Advanced Hacking Suite Protection Centrium Medium Armor Plating Artifact Microwarp Drive Weapon Constructs Energy Gun EM Shotgun Energy Cannon Plasma Cannon Ballistic Gun Enhanced Autogun Ballistic Cannon Constructs Launcher Advanced EMP Blaster Special Weapon Remote Datajack Slashing Weapon Power Sword Piercing Weapon Enhanced Force Lance Special Melee Weapon Dirty Datajack Build | -11 -10 -10 -8 -8 -8 -6 -6 -6 -6 -5 -5 -5 -5 -5 -5 -4 -4 -4 -4 -3 -3 -3 -2 -2 -2 -1 ------- Run | Yrd Mat Sub Mat Sto Rec Fac Low Low Dat Pro Fac Ext Cet Arc Hub Fac Upp Upp Zhi Pro Res Tes Res Qua Sec Acc Slots Evolved 18 | . . . 4 . . 4 . . . . 2 . . . . 2 . . . . 2 . 2 . . 2 Power 2 | . . . . . . . . . . . 1 . . . . 1 . . . . . . . . . . Propulsion 6 | . . . 3 . . 1 . . . . . . . . . . . . . . 2 . . . . . Utility 8 | . . . 1 . . 2 . . . . . . . . . 1 . . . . . . 2 . . 2 Weapon 2 | . . . . . . 1 . . . . 1 . . . . . . . . . . . . . . . Parts Attached 243 | 8 10 15 3 44 5 7 6 5 5 2 6 9 3 5 6 7 10 15 4 8 11 11 10 15 11 2 Power 15 | 1 1 3 . 4 . . 1 . . . 1 . . . . 1 . 1 1 1 . . . . . . Engine 10 | 1 1 3 . 3 . . 1 . . . . . . . . 1 . . . . . . . . . . Core 1 | . . . . 1 . . . . . . . . . . . . . . . . . . . . . . Reactor 4 | . . . . . . . . . . . 1 . . . . . . 1 1 1 . . . . . . Propulsion 35 | 2 1 2 2 14 3 1 1 1 . . . . . 1 . . . . . . 2 3 1 . 1 . Treads 18 | 2 1 2 2 10 . . 1 . . . . . . . . . . . . . . . . . . . Leg 1 | . . . . . . . . 1 . . . . . . . . . . . . . . . . . . Wheel 6 | . . . . 2 3 1 . . . . . . . . . . . . . . . . . . . . Hover 5 | . . . . 1 . . . . . . . . . 1 . . . . . . . 2 . . 1 . Flight 5 | . . . . 1 . . . . . . . . . . . . . . . . 2 1 1 . . . Utility 107 | 2 6 1 . 9 1 4 2 3 4 1 3 6 2 1 5 3 8 5 . 2 5 5 8 12 7 2 Device 63 | 1 1 . . 5 1 2 1 2 1 . 1 6 2 . 2 . 6 3 . 2 3 4 7 8 3 2 Storage 6 | 1 3 . . 1 . . . . . . . . . . . . . . . . . . . 1 . . Processor 8 | . 1 . . . . 1 . . 1 . 1 . . . . . . . . . . . 1 2 1 . Hackware 9 | . . . . . . . . . . . . . . . 3 3 . . . . 1 1 . . 1 . Protection 18 | . 1 1 . 3 . 1 1 1 2 1 1 . . 1 . . 2 2 . . 1 . . . . . Artifact 3 | . . . . . . . . . . . . . . . . . . . . . . . . 1 2 . Weapon 86 | 3 2 9 1 17 1 2 2 1 1 1 2 3 1 3 1 3 2 9 3 5 4 3 1 3 3 . Energy Gun 21 | . 2 2 1 5 . . . . . . 2 2 . 2 1 . 1 . . 1 . 1 . 1 . . Energy Cannon 12 | . . 1 . 1 . . 1 . 1 . . . . 1 . 2 . . . . 2 1 . 1 1 . Ballistic Gun 18 | 3 . 3 . 6 1 . . . . . . . 1 . . . 1 2 . . 1 . . . . . Ballistic Cannon 8 | . . . . 2 . . 1 . . 1 . . . . . . . 1 . 1 . 1 1 . . . Launcher 8 | . . 2 . 1 . 2 . . . . . . . . . 1 . . . . . . . . 2 . Special Weapon 3 | . . 1 . . . . . . . . . 1 . . . . . 1 . . . . . . . . Impact Weapon . | . . . . . . . . . . . . . . . . . . . . . . . . . . . Slashing Weapon 4 | . . . . 2 . . . 1 . . . . . . . . . . . 1 . . . . . . Piercing Weapon 3 | . . . . . . . . . . . . . . . . . . 1 . . 1 . . 1 . . Special Melee Weapon 9 | . . . . . . . . . . . . . . . . . . 4 3 2 . . . . . . Unidentified Prototypes 21 | . . . . 9 1 . . 1 . . . . . . . . . . 1 . . 3 . 1 4 1 Parts Lost 43 | . 1 4 4 5 . 1 2 . . . . 1 1 . 6 . 4 2 . 7 . 1 1 1 2 . Power 7 | . 1 1 . 1 . . 1 . . . . . . . 2 . . . . 1 . . . . . . Propulsion 6 | . . . 2 3 . . . . . . . . . . . . . . . 1 . . . . . . Utility 10 | . . . 1 . . . . . . . . 1 . . 3 . . 1 . 2 . 1 1 . . . Weapon 20 | . . 3 1 1 . 1 1 . . . . . 1 . 1 . 4 1 . 3 . . . 1 2 . Highest Loss Streak 5 | . 1 1 3 1 . 1 2 . . . . 1 1 . 5 . 1 1 . 3 . 1 1 1 1 . To Critical Strikes 1 | . . . . . . . . . . . . . . . . . . . . 1 . . . . . . Average Backups 20 | 4 11 14 12 21 22 23 23 23 22 23 22 22 19 19 19 17 18 22 23 23 22 23 23 21 18 13 Power 1 | . . . 1 1 2 3 2 2 2 3 1 1 1 1 1 . . . . . . . . . . 2 Propulsion 1 | 3 3 3 . 2 3 1 1 . . . . 2 3 1 . 1 3 2 1 1 1 1 . . . 1 Utility 11 | . 3 4 3 4 5 9 10 12 13 16 12 13 13 15 16 11 12 13 15 14 15 16 17 14 9 6 Weapon 4 | . 4 6 6 12 8 8 7 8 5 3 6 2 1 . . 2 1 . . . 1 2 1 2 2 2 Tool/Special . | . . . . . . . . . . . . . . . . . . . . . . . . . . . Unused Backups 206 | . 14 6 . 5 28 8 18 1 9 . 5 10 7 7 2 7 . 11 2 3 21 14 7 9 3 9 Power 16 | . . 1 . . 2 . 6 . . . . 2 . . . . . . . . 1 1 . 1 . 2 Propulsion 61 | . 6 . . . 16 . 5 . . . . 1 4 4 . . . 7 . 3 7 4 1 2 . 1 Utility 58 | . 3 3 . 2 3 5 3 . 3 . 2 1 3 2 1 2 . 3 . . 7 5 3 4 1 2 Weapon 67 | . 5 2 . 3 7 3 4 1 6 . 3 6 . 1 1 5 . 1 2 . 4 4 3 2 1 3 Tool/Special 4 | . . . . . . . . . . . . . . . . . . . . . 2 . . . 1 1 Average Slot Usage (%) 60 | . 99 97 73 93 66 57 52 56 55 54 52 49 49 50 51 51 56 56 60 56 53 46 46 44 46 47 Engine 4 | . 14 11 9 7 8 6 3 6 3 . 4 . . 3 8 4 5 1 . . . . . . . . Reactor 2 | . . . . . . . . . 2 6 2 . 2 5 1 3 5 6 12 7 4 4 4 4 2 . Treads 6 | . 28 28 25 39 14 . 1 . . . 3 2 . 2 4 . . . . . . . . . . . Leg 2 | . . . . . 1 6 2 6 8 6 1 1 3 . . 5 5 5 5 3 . . 1 1 4 3 Device 13 | . 6 9 9 4 6 11 11 16 13 12 10 19 22 20 12 10 15 17 15 15 18 17 16 20 16 21 Storage 6 | . 14 14 9 9 9 6 6 6 6 6 5 5 5 5 5 5 5 5 5 5 4 4 4 4 4 3 Processor 2 | . . . . . . 4 6 6 6 6 9 1 . . . . . . . . . . 3 4 6 3 Protection 3 | . 6 4 3 12 4 2 1 . 3 6 1 . . 1 . 4 8 6 5 5 . . . . . . Energy Gun 2 | . 10 17 5 1 3 . . . . . 3 2 . 2 5 . . . . 3 1 1 . 1 . . Energy Cannon 2 | . . 2 . . . . 4 6 4 2 2 4 5 4 4 1 3 . . . 5 1 4 3 2 . Ballistic Gun 2 | . 16 7 12 8 6 . . . . . . . 1 1 . 4 3 1 . . 1 . . . . . Ballistic Cannon 2 | . . . . . 1 7 4 4 3 7 2 . . . . . 3 4 3 3 1 4 2 . 2 3 Peak Build Rating 238 | 7 11 13 15 34 53 64 82 84 100 101 104 113 118 127 120 128 136 141 139 143 153 182 210 208 237 238 Average Rating 96 | 5 8 11 13 25 39 62 71 79 86 93 96 98 103 115 114 113 124 125 129 127 140 169 198 198 216 230 On Entrance 97 | . 7 10 13 11 31 53 64 76 84 100 89 99 90 118 116 75 128 117 129 136 129 153 182 190 210 214 Naked Turns . | . . . . . . . . . . . . . . . . . . . . . . . . . . . Heaviest Build 231 | 13 94 99 37 114 111 109 109 116 122 128 136 133 125 125 110 109 121 164 163 180 158 167 175 168 231 183 Greatest Support 252 | 40 40 40 80 100 116 116 146 98 137 163 110 135 133 127 52 129 129 183 175 175 233 236 201 214 252 243 Greatest Overweight (x) 52 | . 2 2 . 10 5 6 1 1 1 1 1 1 . 2 2 1 . . . 1 1 . 1 52 1 . Average Overweight (x) . | . . . . 1 2 4 . 1 . . 1 . . . . . . . . . . . . . . . Largest Inventory Capacity 25 | 8 25 25 15 25 25 25 25 25 25 25 25 25 25 25 20 20 20 25 25 25 25 25 25 25 25 25 Average Capacity 22 | 7 12 15 15 22 25 25 25 25 23 25 25 25 25 21 20 20 20 22 25 25 23 25 25 25 25 25 Most Carried 25 | 7 16 20 15 25 25 25 25 25 25 25 25 25 25 25 20 20 20 25 25 25 25 25 25 25 25 18 Average Carried 21 | 4 11 15 12 22 22 24 24 24 23 24 23 23 23 20 19 17 18 22 23 23 23 24 24 24 23 14 Final Capacity 25 | 8 15 15 15 25 25 25 25 25 25 25 25 25 25 20 20 20 20 25 25 25 25 25 25 25 25 25 Final Carried 25 | 7 15 15 15 25 25 25 25 25 25 25 25 22 25 20 20 20 18 25 25 25 25 25 24 24 18 15 Scrap Engine Consumption 531 | . . . . . 54 11 46 13 19 29 30 59 18 21 8 13 8 33 6 25 26 26 17 33 34 2 Constructs Created 10 | . . . . . 3 1 1 . . . . . . 2 . 1 . . . . . 1 . 1 . . Constructs Modified 232 | . . . . . 19 3 20 7 5 17 11 33 6 7 3 8 2 14 2 14 7 15 10 12 15 2 Class Distribution -------------------- 54% | Construct 12% | Commander-Construct 10% | Scavenger-Construct 10% | Mutant 8% | Scavenger-Mutant Dominant Class ---------------- Mutant | -10/Materials Mutant | -10/Subcaves Scavenger-Mutant | -8/Materials Scavenger-Mutant | -8/Storage Construct | -8/Recycling Construct | -6/Factory Construct | -6/Lower Caves Construct | -6/Lower Caves Construct | -6/Data Miner Construct | -5/Proximity Caves Construct | -5/Factory Commander-Construct | -5/Extension Commander-Construct | -5/Cetus Commander-Construct | -5/Archives Hacker-Construct | -5/Hub_04(d) Hacker-Construct | -4/Factory Scavenger-Construct | -4/Upper Caves Construct | -4/Upper Caves Construct | -4/Zhirov Construct | -3/Proximity Caves Construct | -3/Research Construct | -3/Testing Construct | -2/Research Construct | -2/Quarantine Construct | -2/Section 7 Alien-Construct | -1/Access Resources | -11 -10 -10 -8 -8 -8 -6 -6 -6 -6 -5 -5 -5 -5 -5 -5 -4 -4 -4 -4 -3 -3 -3 -2 -2 -2 -1 ----------- Run | Yrd Mat Sub Mat Sto Rec Fac Low Low Dat Pro Fac Ext Cet Arc Hub Fac Upp Upp Zhi Pro Res Tes Res Qua Sec Acc Matter Collected 16233 | 196 493 635 115 960 390 219 813 210 350 427 163 258 70 162 87 1 627 697 190 1062 1069 644 923 1273 3531 668 Remotely 743 | . . . . . . . . . . . . . . . . . . . . . . 120 195 428 . . Salvage Created 25515 | 19 656 619 154 1208 974 530 746 503 440 1089 708 1438 185 607 1007 47 349 1044 235 2028 938 971 1532 1612 4048 1828 Parts 1073 | 4 47 34 10 65 32 22 34 16 37 48 35 58 11 30 43 5 16 47 13 54 30 39 54 67 138 84 Haulers Intercepted 5 | . 2 . . . . . . . . . . 1 . . . . . . . . . . 1 . . 1 Recyclers Shooed 7 | 1 . . . 3 2 . . . . . 1 . . . . . . . . . . . . . . . Parts Field Recycled . | . . . . . . . . . . . . . . . . . . . . . . . . . . . Retrieved Matter . | . . . . . . . . . . . . . . . . . . . . . . . . . . . Parts Self-Destructed 95 | . . 8 . . . . 3 11 . 20 . . . . . . 9 20 5 19 . . . . . . Prevented 37 | . . 2 . . . . 15 9 . 11 . . . . . . . . . . . . . . . . Kills | -11 -10 -10 -8 -8 -8 -6 -6 -6 -6 -5 -5 -5 -5 -5 -5 -4 -4 -4 -4 -3 -3 -3 -2 -2 -2 -1 ------- Run | Yrd Mat Sub Mat Sto Rec Fac Low Low Dat Pro Fac Ext Cet Arc Hub Fac Upp Upp Zhi Pro Res Tes Res Qua Sec Acc Combat Hostiles Destroyed 353 | . 18 12 6 25 6 12 10 7 4 16 10 12 2 1 14 2 8 11 . 18 14 12 18 20 65 30 Melee 22 | . . . . 12 . . . . . . . 1 . . . . 1 . . 6 2 . . . . . Guns 49 | . 17 4 6 10 6 1 . . . . . 1 . 1 . . 1 . . 2 . . . . . . Cannons 165 | . . 1 . 1 . 6 2 2 4 8 8 10 2 . 11 . 2 10 . 4 10 12 16 20 29 7 AOE 95 | . 1 6 . 2 . 5 5 . . 4 2 . . . . 2 4 1 . 6 . . . . 34 23 Classes Destroyed 28 | 1 5 4 1 3 . 1 3 . . 2 . . . 1 . . . . . . . . . 1 5 1 Worker 12 | . . . . 2 . 1 . . . . 1 . . . 1 . . . . . . . . 1 3 3 Builder 10 | . . . . 2 . . . . . . 1 . . . . 1 . . . . . . 1 . 4 1 Tunneler 3 | 1 1 . . . . 1 . . . . . . . . . . . . . . . . . . . . Hauler 5 | . 2 . . . . . . . . . . 1 . . . . . . . . . . 1 . . 1 Recycler 12 | . 1 . . 1 6 1 . . . . . 3 . . . . . . . . . . . . . . Mechanic 4 | . . . . 1 . . . . . . . . . . . . . . . . . 1 . . 1 1 Operator 11 | . . . . . . . . . . . . . . 7 . 1 . . . . 1 . . 2 . . Watcher 13 | . 1 . . 1 . . . . . . . 2 1 . . 1 . . . . . . 3 2 2 . Swarmer 64 | . 11 . 3 4 . 4 . . . 7 . 1 . . . . 5 6 . 13 2 . 4 . . 4 Cutter 3 | . . . . . . . . . . . . . . . . . . . . . . . . . . 3 Saboteur 4 | . . . . . . . . . . . . . . . . . . . . . . . . . 3 1 Grunt 116 | . 7 . 2 12 . 5 7 7 . 3 9 5 . . 8 . 2 2 . 3 9 3 3 . 19 10 Brawler 7 | . . . 1 2 . . . . . . 1 . . . . . . . . 1 . . . . 1 1 Duelist 11 | . . . . . . 1 1 . . . . . . . . . . 1 . 2 . . . . 4 2 Protector 5 | . . . . . . . . . . . . . . . . . . . . . . . . . 2 3 Researcher 3 | . . . . . . . . . . . . . . . . . . . . . . . . . 3 . Sentry 32 | . . 1 . 7 1 2 . . . 1 . 4 . 1 2 . 1 1 . . . . 4 . 5 2 Specialist 3 | . . . . . . . . . . . . . . . . . . . . . . . . 3 . . Hunter 24 | . . . . . . . . . . 2 . . . . 1 2 . 4 . . 1 4 2 . 8 . Programmer 27 | . . . . . . . . . . 2 . 1 . . 2 . . . . . . 2 3 7 8 2 Behemoth 8 | . . . . . . . 1 . . 1 . 1 . . 1 . . 1 . 1 . . . . . 2 Cetus Guard 2 | . . . . . . . . . . . . . 2 . . . . . . . . . . . . . S7 Guard 1 | . . . . . . . . . . . . . . . . . . . . . . . . . 1 . Enhanced Grunt 5 | . . . . . . . . . 4 . . . . . 1 . . . . . . . . . . . Tracker 14 | . . . . . . . . . . . . . . . . . . . . . 1 1 2 5 5 . Combat Programmer 12 | . . . . . . . . . . . . . . . . . . . . . 1 2 . 5 4 . Investigator 1 | . . . . . . . . . . . . . . . . . . . . . . . . . 1 . Executioner 3 | . . . . . . . . . . . . . . . . . . . . . . . . . 3 . Alpha 7 2 | . . . . . . . . . . . . . . . . . . . . . . . . . 2 . Artisan 4 | . . 4 . . . . . . . . . . . . . . . . . . . . . . . . Subdweller 16 | . . 11 . . 5 . . . . . . . . . . . . . . . . . . . . . Scientist 1 | . . 1 . . . . . . . . . . . . . . . . . . . . . . . . Packrat 4 | . . . . . . . . . . . . . . . . . 1 3 . . . . . . . . Samaritan 2 | . . . . . . . 1 . . . . . . . . . 1 . . . . . . . . . Thug 3 | . . . . . . . . . . . . . . 3 . . . . . . . . . . . . Savage 2 | . . . . . . . 1 . . . . . . 1 . . . . . . . . . . . . Mutant 1 | . . . . . . . 1 . . . . . . . . . . . . . . . . . . . Best Kill Streak 40 | 1 5 2 3 7 2 7 8 4 2 5 5 2 2 2 9 4 5 3 . 3 5 4 7 6 40 34 Combat Bots Only 35 | . 3 2 3 5 2 5 8 4 2 5 4 2 1 1 9 2 5 3 . 3 5 4 6 6 35 28 Max Kills in Single Turn 8 | 1 2 1 1 4 1 2 2 1 1 2 2 1 1 1 1 3 2 1 . 1 1 1 1 1 8 6 Gunslinging . | . . . . . . . . . . . . . . . . . . . . . . . . . . . Exploded 7 | . 1 1 . 2 . 2 2 . . 2 1 . . . . 1 2 1 . 1 . . . . 7 4 Melee 1 | . . . . 1 . . . . . . . 1 . . . . 1 . . 1 1 . . . . . Uniques/NPCs Destroyed . | . . . . . . . . . . . . . . . . . . . . . . . . . . . Combat | -11 -10 -10 -8 -8 -8 -6 -6 -6 -6 -5 -5 -5 -5 -5 -5 -4 -4 -4 -4 -3 -3 -3 -2 -2 -2 -1 -------- Run | Yrd Mat Sub Mat Sto Rec Fac Low Low Dat Pro Fac Ext Cet Arc Hub Fac Upp Upp Zhi Pro Res Tes Res Qua Sec Acc Hostile Shots Fired 2839 | . 64 43 39 143 18 76 48 24 19 87 72 106 29 16 93 12 153 212 . 191 143 109 268 198 445 231 Missed 931 | . 17 15 10 25 4 32 17 10 5 37 23 26 7 4 24 5 39 81 . 63 62 46 76 75 113 115 Hits 1908 | . 47 28 29 118 14 44 31 14 14 50 49 80 22 12 69 7 114 131 . 128 81 63 192 123 332 116 Melee 14 | . . . . 1 . . . . . . . . . . . . . 1 . 6 . . . 1 1 4 Projectile 1894 | . 47 28 29 117 14 44 31 14 14 50 49 80 22 12 69 7 114 130 . 122 81 63 192 122 331 112 AOE 8 | . . 2 . . . . . . . . . . . . 3 . . . . . . . . . 1 2 Critical Strikes 95 | . 1 1 . 4 1 1 . 1 . 3 3 3 6 . 5 . 1 3 . 8 1 4 8 7 29 5 Actively Blocked 1 | . . . . . . . . . . . . . . . . . . . . . . . . 1 . . Part Disruptions 1 | . . . . . . . . . . . . . . . . . . . . . . . 1 . . . Damage Taken 38967 | . 490 885 427 1635 317 806 699 245 607 794 1102 1706 604 357 1854 125 2333 2357 . 3460 1384 926 3430 2482 7876 2066 Core 3146 | . 54 84 53 164 35 5 96 85 44 38 189 116 69 . 263 . 144 213 . 194 79 46 52 145 710 268 Absorbed by Shields 3306 | . . . . . . . . 30 60 204 . 194 131 . 255 . . 18 . 18 267 349 828 262 293 397 Redirected to Core 94 | . . . . . . . . . . . . . . . . . . . . . . . . . 94 . Ignored by Resistances 115 | . . . . . . . . . . . . . . . . . . . . . . . . . 97 18 Regen/Repaired (Parts) 19407 | . 66 . . . 17 240 542 138 322 333 549 1352 266 267 465 612 257 1136 . 874 399 982 803 3505 4426 1856 Core Remaining (%) 60 | 100 . 44 . . 54 . . . . 68 . . . . 36 . . . . 52 . 90 . . 32 68 Volleys Fired 1477 | 6 45 73 16 41 65 43 31 15 17 44 62 58 12 35 61 8 64 97 20 95 40 85 129 108 149 58 Largest 3 | 2 2 2 2 2 2 1 2 1 1 1 2 2 1 3 1 1 3 1 1 2 2 1 1 1 1 1 Hottest 407 | 40 90 90 90 129 98 96 137 80 79 56 150 407 402 402 40 120 363 87 30 165 176 64 150 141 131 131 Shots Fired 1648 | 12 90 94 25 77 90 43 32 15 17 46 70 60 12 37 62 8 81 97 20 102 41 85 129 105 140 58 Gun 424 | 12 90 69 24 67 90 5 . . . . 7 7 . 5 . . 12 24 . 11 1 . . . . . Cannon 1035 | . . 9 . 8 . 31 24 15 17 34 58 52 9 32 62 1 66 71 . 28 40 85 129 105 119 40 Launcher 104 | . . 16 1 2 . 7 8 . . 12 5 1 3 . . 7 3 . . . . . . . 21 18 Special 85 | . . . . . . . . . . . . . . . . . . 2 20 63 . . . . . . Kinetic 786 | 12 80 38 14 52 76 33 20 . 17 23 11 17 . 3 . . 55 95 . 39 4 56 22 12 67 40 Thermal 680 | . . 9 11 25 14 6 1 3 . 8 54 35 9 34 62 1 16 . 20 63 28 29 107 93 52 . Explosive 66 | . . 14 . . . 3 . . . . . . . . . 7 3 . . . . . . . 21 18 Electromagnetic 114 | . 10 33 . . . 1 11 12 . 15 5 8 3 . . . 7 . . . 9 . . . . . Robot Hit Streak 37 | 2 8 20 6 26 11 8 8 10 12 11 9 10 9 7 37 . 12 20 21 15 21 14 15 11 18 16 Robot Miss Streak 7 | 4 4 2 2 6 2 2 2 2 3 2 1 2 2 3 1 . 2 6 . 2 1 2 4 7 2 1 Penetration Max 1 | . . . . . . . . . . . 1 . . . . . . . . . . . . . 1 1 Secondary Targets 4 | . 1 . . 3 . . . . . . . . . . . . . . . . . . . . . . Max Gunslinging Chain 1 | . 1 . . 1 . . . . . . . . . . . . . . . . . . . . . . Capacitor 208 | . . . . . . . . . . . . . . . . . . . . . . . 116 92 . . Shots Hit Robots 1200 | 5 51 38 15 99 64 19 20 12 18 35 28 37 7 24 36 . 48 107 20 177 35 47 72 44 101 41 Core Hits 785 | 2 29 33 8 42 22 29 23 9 20 19 21 15 8 13 17 8 17 62 6 62 13 11 30 17 164 85 Critical Kills 14 | . . . . 2 1 1 . . . . 1 1 . 1 3 . . 1 . . . . 2 . 1 . Critical Parts Destroyed 6 | . . . . . . 1 . . . . 3 2 . . . . . . . . . . . . . . Critical Strikes 32 | . . . . 5 1 2 . . . . 5 5 1 2 3 . 1 1 . 2 . . 2 . 2 . Burn 4 | . . . . 1 . . . . . . . 1 1 1 . . . . . . . . . . . . Meltdown 6 | . . . . . . . . . . . . . . . 3 . . . . . . . 2 . 1 . Destroy 16 | . . . . 2 1 2 . . . . 5 4 . 1 . . . 1 . . . . . . . . Corrupt 1 | . . . . . . . . . . . . . . . . . 1 . . . . . . . . . Sever 3 | . . . . 2 . . . . . . . . . . . . . . . 1 . . . . . . Impale 2 | . . . . . . . . . . . . . . . . . . . . 1 . . . . 1 . Melee Attacks 259 | . . . . 68 . . . 1 13 . . . . . . . . 27 . 111 14 . . 2 23 . Impact . | . . . . . . . . . . . . . . . . . . . . . . . . . . . Slashing 103 | . . . . 68 . . . 1 13 . . . . . . . . . . 12 9 . . . . . Piercing 156 | . . . . . . . . . . . . . . . . . . 27 . 99 5 . . 2 23 . Sneak Attacks 23 | . . . . 4 . . . . 1 . . . . . . . . 1 . 13 . . . 1 3 . Combat Hostiles 10 | . . . . . . . . . . . . . . . . . . 1 . 9 . . . . . . Follow-up Attacks 2 | . . . . 2 . . . . . . . . . . . . . . . . . . . . . . Damage Inflicted 84397 | 32 824 1033 401 2828 1211 2278 1831 732 1670 3065 1954 2653 976 1838 2241 715 2747 2199 173 3057 2506 4758 4029 8700 21649 8297 Guns 4768 | 32 747 428 308 847 1089 52 . . . . . 193 . 91 . . 205 623 . 153 . . . . . . Cannons 51990 | . . 79 . 95 . 547 956 732 1596 2262 1421 2425 597 1747 2153 . 1802 1524 . 685 2409 4758 3985 8537 11030 2650 Explosions 23000 | . 77 526 93 509 108 1679 875 . . 803 533 . 379 . 69 715 727 . . . . . . . 10260 5647 Melee 3903 | . . . . 1353 . . . . 74 . . . . . . . . 52 . 1810 97 . . 158 359 . Ramming 154 | . . . . 24 14 . . . . . . 35 . . 19 . 13 . . . . . 44 5 . . Kinetic 27278 | 32 607 109 241 1215 938 854 810 . 1596 1393 329 772 . 91 . . 1168 2147 . 838 . 2948 800 1607 6133 2650 Thermal 31172 | . 77 79 160 236 259 743 306 . . 827 1187 1563 597 1747 2153 . 741 . 173 409 2050 1810 3185 6930 5224 716 Explosive 17556 | . . 466 . . . 634 . . . . 150 . . . . 715 727 . . . . . . . 9933 4931 Electromagnetic 4334 | . 140 379 . . . 47 715 732 . 845 288 283 379 . 69 . 98 . . . 359 . . . . . Impact . | . . . . . . . . . . . . . . . . . . . . . . . . . . . Slashing 1893 | . . . . 1353 . . . . 74 . . . . . . . . . . 415 51 . . . . . Piercing 2010 | . . . . . . . . . . . . . . . . . . 52 . 1395 46 . . 158 359 . Highest Corruption 32 | . 1 1 . . . . . . . 1 2 4 . . 12 . . . . . 3 3 23 32 32 . Average Corruption 8 | . 1 1 . . . . . . . 1 1 3 . . 4 . . . . . 2 2 8 20 32 . Corruption Purged 16 | . . . . . . . . . . . . 6 . . . . . . . . . 3 . 7 . . Corruption Blocked . | . . . . . . . . . . . . . . . . . . . . . . . . . . . Effects 284 | . 7 28 . . . . . . . 14 5 33 . . 7 . . . . . 8 7 4 75 96 . Message Errors 58 | . 1 3 . . . . . . . 6 . 7 . . 1 . . . . . . 1 2 16 21 . Matter Fused 68 | . 4 10 . . . . . . . 3 1 7 . . 1 . . . . . 3 3 1 13 22 . Heat Flow Errors 36 | . . 6 . . . . . . . 1 1 5 . . 2 . . . . . 3 1 . 10 7 . Energy Discharges 30 | . 1 3 . . . . . . . . . 6 . . 1 . . . . . 1 1 1 9 7 . Parts Rejected 4 | . . . . . . . . . . . . . . . . . . . . . . . . 1 3 . Parts Fused 8 | . . . . . . . . . . . . 2 . . . . . . . . . . . 4 2 . Data Loss (minor) 23 | . . 2 . . . . . . . 1 . 1 . . 1 . . . . . 1 . . 9 8 . Data Loss (major) 10 | . 1 2 . . . . . . . 1 1 1 . . . . . . . . . . . 2 2 . Misfires 11 | . . 2 . . . . . . . 2 2 1 . . 1 . . . . . . . . 1 2 . Alerts 9 | . . . . . . . . . . . . 3 . . . . . . . . . 1 . 3 2 . Misdirections 12 | . . . . . . . . . . . . . . . . . . . . . . . . 3 9 . Weapon Failures 15 | . . . . . . . . . . . . . . . . . . . . . . . . 4 11 . Overload Shots 1 | . . . . . . . . . . . . . . . . . . . . . . . 1 . . . Overflow Damage 7590 | . . . . 130 . 155 . 19 19 280 7 390 20 178 27 71 73 2 1 96 146 909 191 2390 2228 258 Projectiles 6549 | . . . . 1 . . . 19 5 280 7 390 . 178 27 . 61 2 1 62 146 909 169 2390 1819 83 Explosions 599 | . . . . 9 . 155 . . . . . . 20 . . 71 12 . . . . . . . 157 175 Melee 442 | . . . . 120 . . . . 14 . . . . . . . . . . 34 . . 22 . 252 . Knockbacks 111 | . . . . 1 . 1 . . 17 5 2 3 . . 1 . . 22 . 5 . 16 4 1 26 7 Impact 1 | . . . . . . . . . . . . . . . 1 . . . . . . . . . . . Kinetic 103 | . . . . 1 . 1 . . 16 5 2 3 . . . . . 21 . 5 . 16 4 1 22 6 Secondary 7 | . . . . . . . . . 1 . . . . . . . . 1 . . . . . . 4 1 Self-Inflicted Damage 901 | . 29 23 37 . 24 299 . . . 42 169 . . . 96 1 81 . . . . . . 2 98 . Shots 24 | . 1 1 1 . 1 5 . . . 4 4 . . . 1 1 2 . . . . . . . 3 . Rammed 7 | . . . . 2 1 . . . . . . 2 . . 1 . . . . . . . . 1 . . Targets Rammed 17 | . . . . 4 1 . . . . . . 5 . . 4 . 1 . . . . . 1 1 . . Kicked 5 | . . . . . . . . . . . . 1 . . 2 . 1 . . . . . 1 . . . Crushed 5 | . . . . 2 . . . . . . . 2 . . 1 . . . . . . . . . . . Highest Temperature 556 | . 102 251 78 282 336 288 102 52 100 120 209 527 556 332 226 70 303 341 . 210 199 149 251 231 309 55 Average Temperature 83 | . 46 110 37 91 68 77 28 22 45 21 58 130 188 141 48 51 115 89 . 77 83 92 56 72 70 32 Received Heat Transfer 4522 | . 126 150 171 756 48 171 126 110 . 73 405 570 31 63 231 . 231 48 . 314 186 21 130 45 326 190 Effects 8 | . . . . 1 . . . . . . . 4 . 2 . . 1 . . . . . . . . . Energy Bleed 2 | . . . . 1 . . . . . . . . . . . . 1 . . . . . . . . . Interference 6 | . . . . . . . . . . . . 4 . 2 . . . . . . . . . . . . Siege Activations . | . . . . . . . . . . . . . . . . . . . . . . . . . . . Martial Activations . | . . . . . . . . . . . . . . . . . . . . . . . . . . . Shielding Activations . | . . . . . . . . . . . . . . . . . . . . . . . . . . . Robots Disrupted 3 | . . . . . . . . . . . . . . . . . . . . . . . . . 2 1 Combat Hostiles 3 | . . . . . . . . . . . . . . . . . . . . . . . . . 2 1 Robots Corrupted 18 | . . 1 . . . . 4 5 . 4 . . . . 1 . . . . . 1 . 1 . 1 . Combat Hostiles 15 | . . 1 . . . . 3 5 . 4 . . . . . . . . . . 1 . . . 1 . Parts Fried 40 | . . 3 . . . . 3 11 . 11 . 1 1 . 3 . . . . . 3 . 1 . 3 . Impact Corruptions 5 | . . . . . . . . . . . . . . . . . . . . . . . 2 . 2 1 Robots Melted 7 | . . . . . . . . . . . . . . . 3 . . . . . 1 . 2 . 1 . Combat Hostiles 7 | . . . . . . . . . . . . . . . 3 . . . . . 1 . 2 . 1 . Parts Melted 29 | . . 3 . . 2 . . . . 1 . 2 . . 3 . . . . 2 2 . 11 2 1 . Heat Transferred 15240 | . 50 111 200 592 50 535 300 . . 100 827 888 296 555 . . 592 . 500 1450 1159 800 2344 1369 1821 701 Parts Sabotaged . | . . . . . . . . . . . . . . . . . . . . . . . . . . . Parts Stolen . | . . . . . . . . . . . . . . . . . . . . . . . . . . . Parts Stripped . | . . . . . . . . . . . . . . . . . . . . . . . . . . . Power Chain Reactions 16 | . 1 . . . 3 . 2 . . 1 1 . . . . . . . . . . . . . 1 7 Alert | -11 -10 -10 -8 -8 -8 -6 -6 -6 -6 -5 -5 -5 -5 -5 -5 -4 -4 -4 -4 -3 -3 -3 -2 -2 -2 -1 ------- Run | Yrd Mat Sub Mat Sto Rec Fac Low Low Dat Pro Fac Ext Cet Arc Hub Fac Upp Upp Zhi Pro Res Tes Res Qua Sec Acc Maximum Alert Level 5 | . . . . 2 . 2 . . . . 1 2 1 1 2 2 . . . . 1 1 2 2 5 5 Low Security (%) 56 | 100 100 . 100 30 100 . . . . . 70 51 26 92 68 . . . . . 83 20 18 52 . . Level 1 26 | . . . . 67 . 69 . . . . 29 18 73 7 9 28 . . . . 16 79 66 28 20 . Level 2 12 | . . . . 1 . 30 . . . . . 30 . . 22 71 . . . . . . 14 19 40 . Level 3 2 | . . . . . . . . . . . . . . . . . . . . . . . . . 29 . Level 4 . | . . . . . . . . . . . . . . . . . . . . . . . . . . . Level 5 . | . . . . . . . . . . . . . . . . . . . . . . . . . . 5 High Security . | . . . . . . . . . . . . . . . . . . . . . . . . . . . Max Security 1 | . . . . . . . . . . . . . . . . . . . . . . . . . 9 94 Peak Influence 4561 | 5 166 . 120 406 170 442 . . . . 368 470 310 277 569 500 . . . . 322 331 466 566 3672 4561 Initial 2203 | . . . . 46 140 250 . . . . 76 168 208 106 . 239 . . . . 83 180 159 246 301 2203 Average 248 | . 88 . 49 232 22 367 . . . . 119 230 233 40 196 402 . . . . 85 250 315 251 771 3515 Influence Increases 16869 | 5 584 20 200 926 279 801 240 160 . 410 511 892 322 289 1101 356 345 401 5 653 542 657 721 827 3264 2358 Destroy 0b10 Robot/C 8000 | . 360 20 120 500 20 240 180 140 . 320 200 480 160 80 340 40 160 260 . 480 280 240 360 400 1720 900 Destroy 0b10 Robot/NC 450 | 5 25 . . 35 55 15 . . . 10 10 35 10 35 20 15 . . 5 . 5 5 25 25 60 55 Destroy Leader 1474 | . 76 . 20 142 . 40 30 20 . 50 20 76 . . 96 12 20 30 . 30 60 70 98 134 324 126 Allied During Kill 1223 | . . . . . . . . . . . . 190 131 115 180 . . 6 . 23 . . . . 318 260 Trap Triggered on 0b10 10 | . . . . . . . . . . . . . . . . . . . . . 10 . . . . . Successful Hack 334 | . 31 . . 19 35 . . . . . . 7 . . 40 43 . . . . 35 63 25 7 29 . Select Force Hacks 210 | . 60 . . . 150 . . . . . . . . . . . . . . . . . . . . . Disable Machine 1410 | . 30 . 45 75 . 135 . . . . 165 45 15 45 105 90 . . . . . 105 45 150 225 135 Anti-Garrison Action 300 | . . . . . . . . . . . . . . . . . . . . . . . . . 150 150 Destroy Structure 2233 | . 2 . 15 35 19 121 . . . . 86 44 6 14 200 156 . . . . 32 54 168 111 438 732 Advance Influence 250 | . . . . . . 250 . . . . . . . . . . . . . . . . . . . . Partial Spotted 15 | . . . . 15 . . . . . . . . . . . . . . . . . . . . . . Lose Combat Pursuer 960 | . . . . 105 . . 30 . . 30 30 15 . . 120 . 165 105 . 120 120 120 . . . . Influence Decreases 12953 | 5 528 76 90 676 639 446 595 160 . 288 289 864 428 555 612 448 713 386 49 529 344 694 568 728 774 1469 Entered New Map 3644 | . . 28 . 64 220 . 132 . . . 46 176 164 160 . 250 148 6 44 . 41 142 126 192 236 1469 Time Decay 8233 | 5 518 48 50 552 419 286 463 160 . 288 243 658 214 375 322 198 534 306 5 453 278 392 422 526 518 . Lost Part 333 | . 10 . 40 50 . 10 . . . . . 10 10 . 60 . 31 20 . 42 . 10 10 10 20 . Lost Ally 268 | . . . . 10 . . . . . . . 20 40 20 80 . . 54 . 34 . . 10 . . . Purge Threat 475 | . . . . . . 150 . . . . . . . . 150 . . . . . 25 150 . . . . Squads Dispatched 115 | . 4 . 1 7 . 2 . . . . 2 3 . . 9 2 . . . . 9 7 7 13 32 17 Investigation 13 | . 2 . . 1 . 1 . . . . . . . . 4 1 . . . . 3 1 . . . . Extermination 13 | . . . . . . 1 . . . . 1 . . . 1 1 . . . . . 1 2 4 2 . Reinforcement 28 | . 2 . 1 1 . . . . . . 1 3 . . 4 . . . . . 4 2 2 1 5 2 Assault 31 | . . . . 2 . . . . . . . . . . . . . . . . . . . 1 14 14 Garrison 5 | . . . . 3 . . . . . . . . . . . . . . . . . . . . 1 1 Intercept 25 | . . . . . . . . . . . . . . . . . . . . . 2 3 3 7 10 . Searches Triggered . | . . . . . . . . . . . . . . . . . . . . . . . . . . . Construction Impeded 1 | . . . . . . . . . . . . . . . . . . . . . . . . . . 1 Haulers Reinforced . | . . . . . . . . . . . . . . . . . . . . . . . . . . . Active Scanning Responses . | . . . . . . . . . . . . . . . . . . . . . . . . . . . Cargo Convoy Interrupts . | . . . . . . . . . . . . . . . . . . . . . . . . . . . Stealth | -11 -10 -10 -8 -8 -8 -6 -6 -6 -6 -5 -5 -5 -5 -5 -5 -4 -4 -4 -4 -3 -3 -3 -2 -2 -2 -1 --------- Run | Yrd Mat Sub Mat Sto Rec Fac Low Low Dat Pro Fac Ext Cet Arc Hub Fac Upp Upp Zhi Pro Res Tes Res Qua Sec Acc Distress Signals 29 | . 3 . 2 3 2 3 . . . . 1 5 2 . 1 . . . . . 5 . 2 . . . Communications Jammed 64 | . . . . . . . . . . . 22 . . . 6 10 5 . . . 7 . 9 4 1 . Distress Signals 59 | . . . . . . . . . . . 22 . . . 6 10 . . . . 7 . 9 4 1 . Times Spotted 664 | . 28 13 12 37 5 22 12 7 4 16 19 33 10 15 32 4 18 34 . 47 35 28 29 41 109 54 Peak Tracking Total 26 | . 4 2 5 5 2 7 4 4 2 5 6 5 5 3 9 3 5 5 . 8 7 5 8 9 26 13 Tactical Retreats 51 | . . . . 4 . . 1 . . 1 2 1 . . 3 . 9 5 . 7 4 8 1 4 1 . Traps | -11 -10 -10 -8 -8 -8 -6 -6 -6 -6 -5 -5 -5 -5 -5 -5 -4 -4 -4 -4 -3 -3 -3 -2 -2 -2 -1 ------- Run | Yrd Mat Sub Mat Sto Rec Fac Low Low Dat Pro Fac Ext Cet Arc Hub Fac Upp Upp Zhi Pro Res Tes Res Qua Sec Acc Traps Triggered 12 | . 2 3 . . . . . . . . 1 1 . . . . . . . . . 1 . 4 . . Indirectly 1 | . . . . . . . . . . . 1 . . . . . . . . . . . . . . . Trap Hack Attempts . | . . . . . . . . . . . . . . . . . . . . . . . . . . . Triggered . | . . . . . . . . . . . . . . . . . . . . . . . . . . . Disarmed 6 | . . . . . . . . . . . . . . . . . . . . . . . 6 . . . Reprogrammed 3 | . . . . . . . . . . . . . . . . . . . . . 3 . . . . . Reused 1 | . . . . . . . . . . . . . . . . . . . . . 1 . . . . . Traps Extracted . | . . . . . . . . . . . . . . . . . . . . . . . . . . . Installed . | . . . . . . . . . . . . . . . . . . . . . . . . . . . Triggered 1 | . . . . . . . . . . . . . . . . . . . . . 1 . . . . . Machines | -11 -10 -10 -8 -8 -8 -6 -6 -6 -6 -5 -5 -5 -5 -5 -5 -4 -4 -4 -4 -3 -3 -3 -2 -2 -2 -1 ---------- Run | Yrd Mat Sub Mat Sto Rec Fac Low Low Dat Pro Fac Ext Cet Arc Hub Fac Upp Upp Zhi Pro Res Tes Res Qua Sec Acc Machines Disabled 104 | . 2 1 3 5 . 9 1 . . . 11 4 1 3 7 6 . . . 1 . 7 3 11 19 10 Max in Single Turn 6 | . 2 1 2 2 . 6 1 . . . 3 1 1 1 2 4 . . . 1 . 2 1 1 2 2 Garrison Access 6 | . . . . . . . . . . . 1 . . . 1 . . . . . . 1 1 . 1 1 Network Hub 4 | . . . . . . . . . . . . . . . 4 . . . . . . . . . . . Machines Repaired . | . . . . . . . . . . . . . . . . . . . . . . . . . . . Machines Dismantled 2 | . . . . . . . . . . . . 1 1 . . . . . . . . . . . . . Machines Sabotaged . | . . . . . . . . . . . . . . . . . . . . . . . . . . . Overloaded Fab Kills . | . . . . . . . . . . . . . . . . . . . . . . . . . . . Hacking | -11 -10 -10 -8 -8 -8 -6 -6 -6 -6 -5 -5 -5 -5 -5 -5 -4 -4 -4 -4 -3 -3 -3 -2 -2 -2 -1 --------- Run | Yrd Mat Sub Mat Sto Rec Fac Low Low Dat Pro Fac Ext Cet Arc Hub Fac Upp Upp Zhi Pro Res Tes Res Qua Sec Acc Machines Accessed 98 | . 9 1 1 9 14 2 1 . 4 . 3 2 . . 8 2 1 1 4 1 4 8 8 8 7 . Terminals 56 | . 6 . 1 9 5 1 . . . . . 1 . . 7 1 . . . . 4 4 6 6 5 . Fabricators 5 | . . . . . . 1 . . . . 1 . . . . 1 . . . . . 2 . . . . Repair Stations 1 | . 1 . . . . . . . . . . . . . . . . . . . . . . . . . Recycling Units 12 | . 2 . . . 8 . . . . . . 1 . . . . . . . . . . 1 . . . Scanalyzers 5 | . . . . . . . . . . . 1 . . . . . . . . . . 1 . 1 2 . Garrison Access 5 | . . . . . . . . . . . 1 . . . 1 . . . . . . 1 1 1 . . Total Hacks 325 | . 26 1 3 26 51 4 1 . 30 . 6 5 . . 19 11 1 1 12 1 19 38 29 21 20 . Successful 180 | . 14 1 1 16 29 2 1 . 30 . 2 1 . . 11 8 1 1 12 1 8 22 7 5 7 . Failed 145 | . 12 . 2 10 22 2 . . . . 4 4 . . 8 3 . . . . 11 16 22 16 13 . Catastrophic 25 | . . . . 2 1 . . . . . 1 . . . 1 1 . . . . 1 2 2 11 3 . Database Lockouts . | . . . . . . . . . . . . . . . . . . . . . . . . . . . Manual 178 | . 22 . 3 21 31 3 . . . . . . 1 . 12 5 . . . . 13 21 22 12 12 . Terminals 200 | . 21 . 3 26 25 2 . . . . . 2 . . 18 5 . . . . 19 24 25 16 14 . Fabricators 18 | . . . . . . 2 . . . . 2 . . . . 6 . . . . . 8 . . . . Repair Stations 2 | . 2 . . . . . . . . . . . . . . . . . . . . . . . . . Recycling Units 31 | . 3 . . . 24 . . . . . . 3 . . . . . . . . . . 1 . . . Scanalyzers 15 | . . . . . . . . . . . 2 . . . . . . . . . . 4 . 3 6 . Garrison Access 10 | . . . . . . . . . . . 2 . . . 1 . . . . . . 2 3 2 . . Terminal Hacks 81 | . 2 1 . 4 5 1 1 . 30 . . 1 . . 3 2 1 1 12 1 4 5 2 2 3 . Record 17 | . . . . . . . . . 11 . . . . . . . . . 5 1 . . . . . . Part Schematic 18 | . 1 . . 1 1 . . . 11 . . . . . 1 . . . 3 . . . . . . . Robot Schematic 5 | . . . . . . . . . 5 . . . . . . . . . . . . . . . . . Prototype ID Bank 11 | . 1 . . 1 2 . . . 3 . . . . . . . . . 4 . . . . . . . Open Door 8 | . . . . 1 . . 1 . . . . 1 . . . . 1 1 . . . . 1 1 1 . Level Access Points 3 | . . . . . . . . . . . . . . . 1 . . . . . . 1 . . 1 . Branch Access Points 2 | . . . . . . . . . . . . . . . . 1 . . . . 1 . . . . . Alert Level 3 | . . . . . . . . . . . . . . . . 1 . . . . . 1 . 1 . . Unreport Threat 4 | . . . . . . 1 . . . . . . . . 1 . . . . . 1 1 . . . . Locate Traps 1 | . . . . . . . . . . . . . . . . . . . . . 1 . . . . . Disarm Traps 1 | . . . . . . . . . . . . . . . . . . . . . . . 1 . . . Reprogram Traps 1 | . . . . . . . . . . . . . . . . . . . . . 1 . . . . . Zone Layout 3 | . . . . 1 . . . . . . . . . . . . . . . . . 2 . . . . Proto ID Catalog 1 | . . 1 . . . . . . . . . . . . . . . . . . . . . . . . Activate Exoskeleton 1 | . . . . . . . . . . . . . . . . . . . . . . . . . 1 . Release Object 2 | . . . . . 2 . . . . . . . . . . . . . . . . . . . . . Fabricator Hacks 7 | . . . . . . . . . . . 1 . . . . 3 . . . . . 3 . . . . Load Schematic 4 | . . . . . . . . . . . 1 . . . . 1 . . . . . 2 . . . . Build 3 | . . . . . . . . . . . . . . . . 2 . . . . . 1 . . . . Repair Station Hacks 2 | . 2 . . . . . . . . . . . . . . . . . . . . . . . . . Scan Component 1 | . 1 . . . . . . . . . . . . . . . . . . . . . . . . . Repair 1 | . 1 . . . . . . . . . . . . . . . . . . . . . . . . . Recycling Unit Hacks 6 | . . . . . 5 . . . . . . . . . . . . . . . . . 1 . . . Retrieve Components 6 | . . . . . 5 . . . . . . . . . . . . . . . . . 1 . . . Scanalyzer 8 | . . . . . . . . . . . . . . . . . . . . . . 4 . 3 1 . Insert Component 7 | . . . . . . . . . . . . . . . . . . . . . . 3 . 3 1 . Analyze 1 | . . . . . . . . . . . . . . . . . . . . . . 1 . . . . Garrison Access Hacks 4 | . . . . . . . . . . . 1 . . . 1 . . . . . . 1 1 . . . Seal Access 4 | . . . . . . . . . . . 1 . . . 1 . . . . . . 1 1 . . . Unauthorized Hacks 72 | . 10 . 1 12 19 1 . . . . . . . . 7 3 . . . . 4 9 3 . 3 . Terminals 60 | . 8 . 1 12 12 . . . . . . . . . 7 2 . . . . 4 8 3 . 3 . Track 10 | . . . . 1 3 . . . . . . . . . 1 . . . . . 2 2 . . 1 . Assimilate 2 | . . . . . . . . . . . . . . . . . . . . . . . 2 . . . Botnet 21 | . 3 . . 5 4 . . . . . . . . . 2 1 . . . . 1 2 1 . 2 . Disrupt 1 | . . . . . . . . . . . . . . . . . . . . . . 1 . . . . Operators 3 | . . . . . . . . . . . . . . . . 1 . . . . 1 1 . . . . Skim 19 | . 5 . 1 6 5 . . . . . . . . . . . . . . . . 2 . . . . Sabotage 4 | . . . . . . . . . . . . . . . 4 . . . . . . . . . . . Fabricators 3 | . . . . . . 1 . . . . . . . . . 1 . . . . . 1 . . . . Prioritize 2 | . . . . . . . . . . . . . . . . 1 . . . . . 1 . . . . Recompile 1 | . . . . . . 1 . . . . . . . . . . . . . . . . . . . . Repair Stations . | . . . . . . . . . . . . . . . . . . . . . . . . . . . Recycling Units 9 | . 2 . . . 7 . . . . . . . . . . . . . . . . . . . . . Mask 2 | . . . . . 2 . . . . . . . . . . . . . . . . . . . . . Tunnel 7 | . 2 . . . 5 . . . . . . . . . . . . . . . . . . . . . Scanalyzers . | . . . . . . . . . . . . . . . . . . . . . . . . . . . Garrison Access . | . . . . . . . . . . . . . . . . . . . . . . . . . . . Data Cores Recovered 3 | . . . . . . . . . . . . . . . . . . . . . 1 . . 2 . . Used 2 | . . . . . . . . . . . . . . . . . . . . . 1 . . 1 . . Hacking Detections 68 | . 6 . 1 9 11 2 . . . . 2 1 1 . 6 2 . . . . 2 7 6 7 5 . Full Trace Events 3 | . . . . 1 . . . . . . . . . . . 1 . . . . . 1 . . . . Feedback Events . | . . . . . . . . . . . . . . . . . . . . . . . . . . . Feedback Blocked . | . . . . . . . . . . . . . . . . . . . . . . . . . . . Robot Schematics Acquired 5 | . . . . . . . . . 5 . . . . . . . . . . . . . . . . . Robots Built . | . . . . . . . . . . . . . . . . . . . . . . . . . . . Authchips . | . . . . . . . . . . . . . . . . . . . . . . . . . . . Time . | . . . . . . . . . . . . . . . . . . . . . . . . . . . Total Robot Build Rating . | . . . . . . . . . . . . . . . . . . . . . . . . . . . Part Schematics Acquired 21 | . 1 . . 1 1 . . . 11 . . . . . 1 . . . 3 . . 1 . . 2 . Parts Built 5 | . . . . . . . . . . . . . . . . 4 . . . . . 1 . . . . Authchips . | . . . . . . . . . . . . . . . . . . . . . . . . . . . Time 158 | . . . . . . . . . . . . . . . . 116 . . . . . 42 . . . . Total Part Build Rating 34 | . . . . . . . . . . . . . . . . 28 . . . . . 6 . . . . Parts Repaired 1 | . 1 . . . . . . . . . . . . . . . . . . . . . . . . . Time 26 | . 26 . . . . . . . . . . . . . . . . . . . . . . . . . Parts Recycled . | . . . . . . . . . . . . . . . . . . . . . . . . . . . Recycled Matter . | . . . . . . . . . . . . . . . . . . . . . . . . . . . Retrieved Matter . | . . . . . . . . . . . . . . . . . . . . . . . . . . . Retrieved Components 22 | . . . . . 20 . . . . . . . . . . . . . . . . . 2 . . . Parts Scanalyzed 1 | . . . . . . . . . . . . . . . . . . . . . . 1 . . . . Part Schematics Acquired 1 | . . . . . . . . . . . . . . . . . . . . . . 1 . . . . Parts Damaged . | . . . . . . . . . . . . . . . . . . . . . . . . . . . Bothacking | -11 -10 -10 -8 -8 -8 -6 -6 -6 -6 -5 -5 -5 -5 -5 -5 -4 -4 -4 -4 -3 -3 -3 -2 -2 -2 -1 ------------ Run | Yrd Mat Sub Mat Sto Rec Fac Low Low Dat Pro Fac Ext Cet Arc Hub Fac Upp Upp Zhi Pro Res Tes Res Qua Sec Acc Used RIF Installer . | . . . . . . . . . . . . . . . . . . . . . . . . . . . Robots Hacked . | . . . . . . . . . . . . . . . . . . . . . . . . . . . Non-combat . | . . . . . . . . . . . . . . . . . . . . . . . . . . . Combat . | . . . . . . . . . . . . . . . . . . . . . . . . . . . Robot Hacks Applied . | . . . . . . . . . . . . . . . . . . . . . . . . . . . Relay Couplers Released 6 | . . . . . . . . . . . . . . . 3 . . . . . . . . . 1 2 Machine Destruction 6 | . . . . . . . . . . . . . . . 3 . . . . . . . . . 1 2 Fabnet Peak Effective % . | . . . . . . . . . . . . . . . . . . . . . . . . . . . Robots Rewired 9 | . . . . . . . . . . . . 6 . . . . . 1 . 2 . . . . . . Allies Hacked . | . . . . . . . . . . . . . . . . . . . . . . . . . . . Hacks Repelled . | . . . . . . . . . . . . . . . . . . . . . . . . . . . Allies | -11 -10 -10 -8 -8 -8 -6 -6 -6 -6 -5 -5 -5 -5 -5 -5 -4 -4 -4 -4 -3 -3 -3 -2 -2 -2 -1 -------- Run | Yrd Mat Sub Mat Sto Rec Fac Low Low Dat Pro Fac Ext Cet Arc Hub Fac Upp Upp Zhi Pro Res Tes Res Qua Sec Acc Total Allies 42 | . . . . 2 . . . . . . . 10 5 . . . . 11 . 12 . . 1 . 1 . Largest Group 11 | . . . . 2 . . . . . . . 9 11 11 5 . . 3 . 2 . . 1 . 1 1 Highest-Rated Group 1204 | . . . . 62 . . . . . . . 378 764 741 473 . . 110 . 116 . . 26 . 1204 1204 Highest-Rated Ally 1204 | . . . . 31 . . . . . . . 159 159 143 96 . . 110 . 116 . . 26 . 1204 1204 Total Orders 11 | . . . . . . . . . . . . . . 7 4 . . . . . . . . . . . STAY 6 | . . . . . . . . . . . . . . 3 3 . . . . . . . . . . . FOLLOW 5 | . . . . . . . . . . . . . . 4 1 . . . . . . . . . . . Ally Attacks 386 | . . . . 8 . . . . . . . 68 61 55 41 . . 25 . 30 . . . . 54 44 Total Damage 18861 | . . . . 149 . . . . . . . 1383 1642 1498 1727 . . 456 . 818 . . . . 6377 4811 Kills 78 | . . . . . . . . . . . . 13 8 3 6 . . 3 . 6 . . . . 19 20 Allies Corrupted 3 | . . . . . . . . . . . . . . . 3 . . . . . . . . . . . Allies Melted 1 | . . . . . . . . . . . . . . . 1 . . . . . . . . . . . Intel | -11 -10 -10 -8 -8 -8 -6 -6 -6 -6 -5 -5 -5 -5 -5 -5 -4 -4 -4 -4 -3 -3 -3 -2 -2 -2 -1 ------- Run | Yrd Mat Sub Mat Sto Rec Fac Low Low Dat Pro Fac Ext Cet Arc Hub Fac Upp Upp Zhi Pro Res Tes Res Qua Sec Acc Active Infowar (turns) 19189 | 37 780 2093 131 529 . 484 2539 1817 163 . 271 170 . 40 495 409 486 1322 . 1968 526 906 844 1395 1576 208 Optics 1586 | . . . . . . . . . . . . . . . . . . . . . . . . . 1378 208 Sensors 7544 | . . . . . . 296 2539 1817 148 . 227 50 . . . . . . . . . . 671 1170 626 . IFF 239 | . . . . . . . . . . . . . . . . . . . . . 29 210 . . . . Structural 188 | . . . . . . 188 . . . . . . . . . . . . . . . . . . . . Seismic 3501 | 37 711 2093 131 529 . . . . . . . . . . . . . . . . . . . . . . T.N.C. 69 | . 69 . . . . . . . . . . . . . . . . . . . . . . . . . Cloaking 224 | . . . . . . . . . . . . . . . . . . . . . 1 223 . . . . Jamming 9141 | . . . . . . . . . 15 . 44 120 . 40 495 409 486 1322 . 1968 526 906 548 1319 943 . ECM 475 | . . . . . . . . . . . . . . . . . . . . . . . 269 165 41 . Robot Analysis Total 151 | . . . . . . . . . 151 . . . . . . . . . . . . . . . . . Derelict Logs Recovered 13 | . . 2 . . . . 2 2 . 3 . . . . . . 1 3 . . . . . . . . Drone Launches . | . . . . . . . . . . . . . . . . . . . . . . . . . . . Drone Recoveries . | . . . . . . . . . . . . . . . . . . . . . . . . . . . Exploration | -11 -10 -10 -8 -8 -8 -6 -6 -6 -6 -5 -5 -5 -5 -5 -5 -4 -4 -4 -4 -3 -3 -3 -2 -2 -2 -1 ------------- Run | Yrd Mat Sub Mat Sto Rec Fac Low Low Dat Pro Fac Ext Cet Arc Hub Fac Upp Upp Zhi Pro Res Tes Res Qua Sec Acc Turns Passed 39263 | 190 1520 2972 131 1872 2379 637 3799 1992 853 2116 691 2864 445 2541 754 409 1763 2384 304 2762 679 931 1023 1468 1576 208 Spaces Moved 19141 | 99 737 1610 48 685 890 256 1397 855 378 1153 267 750 200 489 328 257 1266 1474 192 1420 705 848 648 958 1044 187 Core 4 | 3 . . . . . . . . . . . . . . . . . . . . . . . 1 . . Treads 5036 | 96 737 1610 48 615 193 . 537 82 . . 173 372 . 120 305 . . . . . 22 . . 126 . . Legs 9447 | . . . . . 132 55 627 773 378 1153 94 166 143 73 23 257 1266 1474 192 1033 . . 178 390 966 74 Wheels 1333 | . . . . 70 560 201 233 . . . . 212 57 . . . . . . . . . . . . . Hover 1092 | . . . . . 5 . . . . . . . . 296 . . . . . . . 156 194 441 . . Flight 2038 | . . . . . . . . . . . . . . . . . . . . 387 683 692 276 . . . Fastest Speed 31 | 50 160 160 160 155 97 190 128 184 124 114 188 138 101 77 97 97 97 78 78 78 38 31 60 50 50 128 Average Speed 136 | 156 160 161 160 204 176 194 181 207 156 129 193 225 126 151 185 101 97 86 78 109 50 48 108 121 111 128 Slowest Speed 2650 | 160 320 320 160 240 240 212 252 213 213 230 251 327 190 270 270 205 97 97 78 186 170 107 215 2650 158 128 Overloaded Moves 4 | . . . . . . . . . . . . . . . . . . . . . . 4 . . . . Propulsion Burnouts . | . . . . . . . . . . . . . . . . . . . . . . . . . . . Robots Hopped 6 | . . . . . . . . . . . . . . . . . . . . . 4 . 2 . . . Potential Cave-ins 11 | . . . . . . . . . . . . 8 . . . . . . . . . . . 2 . 1 Cave-ins Triggered . | . . . . . . . . . . . . . . . . . . . . . . . . . . . Teleports 1 | . . . . . . . . . . . . . . . . . . . . . . . . . 1 . Microwarps 17 | . . . . . . . . . . . . . . . . . . . . . . . . . 8 9 Exploration Rate (%) 61 | 5 97 81 7 77 99 12 98 81 82 98 9 74 66 79 55 8 81 97 61 98 20 82 23 86 73 8 Regions Visited 26 Branch Regions 18 Pre-discovered Areas 35 | . 4 . . 2 5 . 1 . 20 . . . . . . . . . 3 . . . . . . . Known Exits Taken 13 | . . . 1 . 1 1 1 1 . . 1 . . . 1 1 . . . . 1 1 1 1 1 . Unknown Exits Taken 13 | 1 1 1 . 1 . . . . 1 1 . 1 1 1 . . 1 1 1 1 . . . . . . Scrap Searched 21 | . . 4 . . . . 5 2 . 4 . . . . . . 1 5 . . . . . . . . Spaces Dug 304 | . . . 1 9 1 61 2 1 . . 14 11 . 3 19 1 7 2 . 3 15 27 32 23 19 53 Terrain Destroyed 1420 | . . 66 16 33 17 120 8 1 10 8 51 30 2 7 181 87 76 4 . 9 16 32 59 42 235 310 Melee 37 | . . . . 9 . . . 1 . . . . . . . . . . . 3 9 . . . 15 . Projectile 327 | . . 1 2 1 1 13 4 . 10 6 18 30 2 7 21 1 22 3 . 6 7 32 59 42 28 11 AOE 1055 | . . 65 14 23 16 107 4 . . 2 33 . . . 160 86 54 . . . . . . . 192 299 Terrain Rammed . | . . . . . . . . . . . . . . . . . . . . . . . . . . . Walls Destroyed . | . . . . . . . . . . . . . . . . . . . . . . . . . . . Machines Disabled . | . . . . . . . . . . . . . . . . . . . . . . . . . . . Actions | -11 -10 -10 -8 -8 -8 -6 -6 -6 -6 -5 -5 -5 -5 -5 -5 -4 -4 -4 -4 -3 -3 -3 -2 -2 -2 -1 --------- Run | Yrd Mat Sub Mat Sto Rec Fac Low Low Dat Pro Fac Ext Cet Arc Hub Fac Upp Upp Zhi Pro Res Tes Res Qua Sec Acc Total 30715 | 119 989 1869 74 967 1663 352 2641 1057 611 1735 375 1851 375 2260 421 401 1717 2510 327 2487 971 1287 940 1242 1315 159 Wait 8321 | . 151 109 . 47 595 7 1143 166 152 518 8 901 127 1696 2 102 350 810 89 784 106 265 89 51 51 2 Move 18929 | 98 736 1609 47 684 889 255 1396 854 377 1152 266 749 199 488 327 256 1265 1473 191 1419 697 847 643 957 973 82 Hop 5 | . . . . . . . . . . . . . . . . . . . . . 3 . 2 . . . Pick Up 470 | 7 25 16 3 30 46 16 23 5 20 2 11 19 12 10 9 15 9 35 8 10 39 30 17 27 21 5 Fast Attach 98 | 7 2 1 . 20 1 1 6 3 . 5 1 1 1 4 . 1 . 11 4 4 3 3 1 6 12 . Attach 121 | . 1 5 3 6 2 5 3 1 3 2 2 3 . 2 3 8 7 7 2 8 8 5 3 8 19 5 Detach 29 | . . . . . 3 . 1 . 1 1 1 1 . 1 1 1 1 1 . 3 2 1 2 2 5 1 Swap 358 | 1 8 41 4 36 5 12 9 7 8 5 12 14 5 9 8 1 15 13 3 12 14 17 33 24 38 4 Drop 481 | . 21 15 . 36 56 13 29 5 20 6 12 19 11 15 6 9 5 36 10 10 43 33 17 30 22 2 Fire 1477 | 6 45 73 16 41 65 43 31 15 17 44 62 58 12 35 61 8 64 97 20 95 40 85 129 108 149 58 Melee 252 | . . . . 61 . . . 1 13 . . . . . . . . 27 . 111 14 . . 2 23 . Ram 1 | . . . . . . . . . . . . . . . . . . . . . . . . 1 . . Kick 5 | . . . . . . . . . . . . 1 . . 2 . 1 . . . . . 1 . . . Crush 11 | . . . . 4 1 . . . . . . 4 . . 2 . . . . . . . . . . . Escape Stasis 28 | . . . . . . . . . . . . . . . . . . . . . . . . 26 2 . Rewire 103 | . . . . . . . . . . . . 72 . . . . . . . 31 . . . . . . Trap . | . . . . . . . . . . . . . . . . . . . . . . . . . . . Miscellaneous 26 | . . . 1 2 . . . . . . . 9 8 . . . . . . . 2 1 3 . . . Route ------- -11/Scrapyard -10/Materials (discovered 5 exits: *Mat x3 / [*Min] / *Sub) -10/Subcaves (discovered 3 exits: *Mat x2 / *Rec) -8/Materials (discovered 2 exits: *Sto x2) -8/Storage (discovered 2 exits: Fac / *Rec) -8/Recycling -6/Factory (discovered 3 exits: *Fac / *Low x2) -6/Lower Caves -6/Lower Caves (discovered 2 exits: *Fac / *Dat) -6/Data Miner -5/Proximity Caves -5/Factory (discovered 2 exits: *Fac / *Ext) -5/Extension (discovered 2 exits: *Fac / *Cet) -5/Cetus (discovered 2 exits: *Fac / [*Arc]) -5/Archives (discovered 2 exits: *Fac / *Hub) -5/Hub_04(d) (discovered 4 exits: *Fac x4) -4/Factory (discovered 3 exits: *Upp x2 / Arm) -4/Upper Caves -4/Upper Caves (discovered 2 exits: *Res / *Zhi) -4/Zhirov -3/Proximity Caves -3/Research (discovered 3 exits: *Res / *Tes x2) -3/Testing -2/Research -2/Quarantine (discovered 3 exits: *Acc / *Sec / [*Frg]) -2/Section 7 -1/Access Tau Ceti IV Orbit History --------- Turn | Location | Event 17 | -11/Scrapyard | Discovered new exit (range 15) 191 | -11/Scrapyard | Entered Materials 306 | -10/Materials | Build established: Mutant 547 | -10/Materials | Repaired Assault Rifle 562 | -10/Materials | Discovered new exit (range 6) 874 | -10/Materials | Discovered new exit (range 10) 1034 | -10/Materials | Discovered new exit (range 5) 1354 | -10/Materials | Discovered new exit (range 6) 1510 | -10/Materials | Learned location of Recycling (-8) 1551 | -10/Materials | Identified exit to Materials 1582 | -10/Materials | Learned 4 Recycling zone layouts 1605 | -10/Materials | Learned 4 Recycling zone layouts 1626 | -10/Materials | Discovered new exit (range 9) 1668 | -10/Materials | Learned Storage terminal intel 1711 | -10/Materials | Entered Subcaves 1712 | -10/Subcaves | Approached by a straggling Scientist 1789 | -10/Subcaves | A swath of the cavern ceiling suddenly collapsed 1825 | -10/Subcaves | Shifting Twisted Machinery released Mak. Light Armor Plating 2103 | -10/Subcaves | Shifting Twisted Machinery released Sub. Laser 2449 | -10/Subcaves | A swath of the cavern ceiling suddenly collapsed 2979 | -10/Subcaves | Learned Materials garrison access intel 3017 | -10/Subcaves | Shifting Twisted Machinery released Flamer 3018 | -10/Subcaves | Shifting Twisted Machinery released Mak. Power Source 3145 | -10/Subcaves | Discovered new exit (range 9) 3257 | -10/Subcaves | Discovered new exit (range 5) 3312 | -10/Subcaves | Disturbed a concealed Subdweller 3386 | -10/Subcaves | Learned Materials garrison access intel 3662 | -10/Subcaves | Visited 4L-MR0's lab 3679 | -10/Subcaves | Found Powered Cannon 3696 | -10/Subcaves | Build established: Scavenger-Mutant 3881 | -10/Subcaves | Shifting Twisted Machinery released Sub. Shrapnel Launcher 4216 | -10/Subcaves | Discovered new exit (range 15) 4495 | -10/Subcaves | Ambushed by angry Subdweller bent on revenge 4504 | -10/Subcaves | Core integrity fell below 50% 4683 | -10/Subcaves | Entered Materials 4683 | -8/Materials | Evolved 4 slots: Propulsion x3, Utility x1 4684 | -8/Materials | Identified exit to Storage 4685 | -8/Materials | Loaded intel: 1 garrison access location 4782 | -8/Materials | Lost 3 parts (2n1u) 4803 | -8/Materials | Discovered exit to Storage (range 5) 4814 | -8/Materials | Entered Storage 4815 | -8/Storage | Loaded intel: 16 terminal locations 5013 | -8/Storage | Discovered new exit (range 17) 5116 | -8/Storage | Used back door to open Recycling access 5223 | -8/Storage | Met a pair of Derelict thieves 5260 | -8/Storage | Garrison activated, responded to threat 6363 | -8/Storage | Learned 4 Recycling zone layouts 6385 | -8/Storage | Learned location of Zion (-7) 6395 | -8/Storage | Identified exit to Factory 6396 | -8/Storage | Learned location of Extension (-5) 6397 | -8/Storage | Learned 4 Recycling zone layouts 6398 | -8/Storage | Learned Factory trap positions 6400 | -8/Storage | Learned Factory security intel 6432 | -8/Storage | Build established: Mutant 6686 | -8/Storage | Entered Recycling 6687 | -8/Recycling | Identified exit to Factory 6878 | -8/Recycling | Build established: Scavenger-Mutant 7297 | -8/Recycling | Entered Scraplab 7303 | -8/Recycling | Found Prototype Device 7303 | -8/Recycling | Identified Scrap Engine 7739 | -8/Recycling | Build established: Construct 9065 | -8/Recycling | Entered Factory 9065 | -6/Factory | Evolved 4 slots: Propulsion x1, Utility x2, Weapon x1 9066 | -6/Factory | Identified exit to Lower Caves 9067 | -6/Factory | Loaded intel: 87 trap records 9435 | -6/Factory | Discovered new exit (range 15) 9702 | -6/Factory | Entered Lower Caves 9841 | -6/Lower Caves | Found DCF Scrap (15 items) 10275 | -6/Lower Caves | Learned Factory security intel 10655 | -6/Lower Caves | Destroyed 8 combat bots 11819 | -6/Lower Caves | Spotted B-75 Beast 11869 | -6/Lower Caves | Destroyed B-75 Beast 12378 | -6/Lower Caves | Discovered new exit (range 10) 12395 | -6/Lower Caves | Identified exit to Lower Caves 12398 | -6/Lower Caves | Encountered a Warlord checkpoint 12530 | -6/Lower Caves | Attacked by a delusional Derelict stockpiling parts 13501 | -6/Lower Caves | Entered another Lower Caves area 13604 | -6/Lower Caves | Learned Factory garrison access intel 14028 | -6/Lower Caves | Discovered new exit (range 6) 14069 | -6/Lower Caves | Found Alien Artifact 14069 | -6/Lower Caves | Identified Core Expander 14069 | -6/Lower Caves | Installed Core Expander, added new Utility slot 14656 | -6/Lower Caves | Discovered new exit (range 14) 14709 | -6/Lower Caves | Identified exit to Data Miner 15032 | -6/Lower Caves | Encountered a Warlord checkpoint 15347 | -6/Lower Caves | Learned Factory stockpile data 15493 | -6/Lower Caves | Entered Data Miner 15493 | -6/Data Miner | Discovered new exit (range 9) 15536 | -6/Data Miner | Met Data Miner 15574 | -6/Data Miner | Learned location of Section 7 (-2) 15574 | -6/Data Miner | Acquired the access code to Warlord's prototype stash 15614 | -6/Data Miner | Received God Mode back door access code from Data Miner 15662 | -6/Data Miner | Interfaced with the Data Conduit 15872 | -6/Data Miner | Found Exp. Thermal Shield 16312 | -6/Data Miner | Found Exp. Thermal Shield 16346 | -6/Data Miner | Entered Proximity Caves 16355 | -5/Proximity Caves | Learned Factory emergency access door positions 16464 | -5/Proximity Caves | Spotted B-75 Beast 16483 | -5/Proximity Caves | Destroyed B-75 Beast 16497 | -5/Proximity Caves | Learned Factory emergency access door positions 16681 | -5/Proximity Caves | Attracted the attention of an 0b10 checkpoint 16887 | -5/Proximity Caves | Learned 4 Factory zone layouts 18364 | -5/Proximity Caves | Discovered new exit (range 7) 18462 | -5/Proximity Caves | Entered Factory 18462 | -5/Factory | Evolved 2 slots: Power x1, Weapon x1 18463 | -5/Factory | Identified exit to Extension 18468 | -5/Factory | Loaded intel: 263 machine locations 18469 | -5/Factory | Loaded intel: 4 garrison access locations 18562 | -5/Factory | Discovered new exit (range 15) 18591 | -5/Factory | Identified exit to Factory 19153 | -5/Factory | Entered Extension 19154 | -5/Extension | Loaded intel: 27 machine locations 19908 | -5/Extension | Spotted B-75 Beast 19940 | -5/Extension | Destroyed B-75 Beast 20204 | -5/Extension | Rescued a captive Derelict 20205 | -5/Extension | Rescued a captive Derelict 20266 | -5/Extension | Rescued A7 20752 | -5/Extension | Rescued a captive Derelict 20818 | -5/Extension | Build established: Commander-Construct 20830 | -5/Extension | Discovered exit to Factory (range 10) 20831 | -5/Extension | Discovered new exit (range 6) 20848 | -5/Extension | Disrupted transfer network 22017 | -5/Extension | Entered Cetus 22017 | -5/Cetus | Accompanied by 9 allies (A7) 22018 | -5/Cetus | Loaded intel: 24 machine locations 22022 | -5/Cetus | Acquired a Cetus Manufacturing Module code from A7 22041 | -5/Cetus | Spotted Cetus Guard 22042 | -5/Cetus | Spotted Cetus Guard 22045 | -5/Cetus | Spotted Cetus Guard 22045 | -5/Cetus | Spotted Cetus Guard 22056 | -5/Cetus | Allies destroyed Cetus Guard 22058 | -5/Cetus | Allies destroyed Cetus Guard 22061 | -5/Cetus | Destroyed Cetus Guard 22070 | -5/Cetus | Allies destroyed Cetus Guard 22086 | -5/Cetus | Lost 3 allies 22172 | -5/Cetus | Started Cetus Manufacturing Module 22197 | -5/Cetus | Manufactured an Enhanced Grunt 22198 | -5/Cetus | Escorted A7 to Cetus Mainframe 22222 | -5/Cetus | Manufactured an Enhanced Grunt 22247 | -5/Cetus | Manufactured an Enhanced Grunt 22272 | -5/Cetus | Manufactured an Enhanced Grunt 22297 | -5/Cetus | Manufactured an Enhanced Grunt 22302 | -5/Cetus | Discovered new exit (range 16) 22334 | -5/Cetus | Spotted Cetus Guard 22334 | -5/Cetus | Spotted Cetus Guard 22339 | -5/Cetus | Spotted Cetus Guard 22339 | -5/Cetus | Spotted Cetus Guard 22346 | -5/Cetus | Allies destroyed Cetus Guard 22353 | -5/Cetus | Allies destroyed Cetus Guard 22356 | -5/Cetus | Destroyed Cetus Guard 22360 | -5/Cetus | Discovered exit to Factory (range 16) 22362 | -5/Cetus | Allies destroyed Cetus Guard 22366 | -5/Cetus | Met Revision 17 22462 | -5/Cetus | Entered Archives 22462 | -5/Archives | Accompanied by 11 allies (A7) 22463 | -5/Archives | Loaded intel: 8 machine locations 22467 | -5/Archives | Received a hacking code to weaken MAIN.C 22522 | -5/Archives | Discovered exit to Factory (range 15) 22611 | -5/Archives | Discovered new exit (range 14) 23242 | -5/Archives | Attached Powered Cannon, gained temporary slot: Power 25003 | -5/Archives | Entered Hub_04(d) 25003 | -5/Hub_04(d) | Accompanied by 5 allies 25004 | -5/Hub_04(d) | Loaded intel: 132 machine locations 25359 | -5/Hub_04(d) | Spotted B-75 Beast 25377 | -5/Hub_04(d) | Destroyed B-75 Beast 25498 | -5/Hub_04(d) | Network Hub disabled 25522 | -5/Hub_04(d) | Network Hub disabled 25653 | -5/Hub_04(d) | Destroyed 9 combat bots 25740 | -5/Hub_04(d) | Spotted Lightning 25741 | -5/Hub_04(d) | Spotted Lightning 25742 | -5/Hub_04(d) | Spotted Lightning 25744 | -5/Hub_04(d) | Network Hub disabled 25744 | -5/Hub_04(d) | Network Hub disabled 25745 | -5/Hub_04(d) | Core integrity fell below 50% 25748 | -5/Hub_04(d) | System corruption reached 10% 25757 | -5/Hub_04(d) | Entered Factory 25757 | -4/Factory | Evolved 2 slots: Power x1, Utility x1 25759 | -4/Factory | Loaded intel: 271 machine locations 25786 | -4/Factory | Lost 5 parts (2p2u1w) 25795 | -4/Factory | Identified exit to Upper Caves 25795 | -4/Factory | Identified exit to Armory 26076 | -4/Factory | Fabricated Enh. Nova Cannon (x2) 26123 | -4/Factory | Fabricated Weapon Mount? 26166 | -4/Factory | Entered Upper Caves 26467 | -4/Upper Caves | Build established: Scavenger-Construct 26791 | -4/Upper Caves | Spotted B-86 Titan 27778 | -4/Upper Caves | Attracted the attention of an 0b10 checkpoint 27896 | -4/Upper Caves | Discovered new exit (range 16) 27929 | -4/Upper Caves | Entered another Upper Caves area 28167 | -4/Upper Caves | Discovered new exit (range 10) 28697 | -4/Upper Caves | Spotted B-86 Titan 28795 | -4/Upper Caves | Build established: Construct 29120 | -4/Upper Caves | Attracted the attention of an 0b10 outpost 29562 | -4/Upper Caves | Destroyed B-86 Titan 29575 | -4/Upper Caves | Found Hvy. Reflective Plating 30083 | -4/Upper Caves | Learned Research stockpile data 30085 | -4/Upper Caves | Learned Research stockpile data 30135 | -4/Upper Caves | Lost 3 allies 30307 | -4/Upper Caves | Discovered new exit (range 4) 30313 | -4/Upper Caves | Entered Zhirov 30313 | -4/Zhirov | Discovered new exit (range 3) 30328 | -4/Zhirov | Met Zhirov 30354 | -4/Zhirov | Zhirov requested help retrieving the SGEMP Prototype 30366 | -4/Zhirov | Found Alien Artifact 30366 | -4/Zhirov | Identified Integrated Dissipator 30366 | -4/Zhirov | Installed Integrated Dissipator, increased core heat dissipation (+20) 30382 | -4/Zhirov | Found Alien Artifact 30617 | -4/Zhirov | Entered Proximity Caves 30622 | -3/Proximity Caves | Spotted B-86 Titan 30957 | -3/Proximity Caves | Destroyed B-86 Titan 31269 | -3/Proximity Caves | Build established: Scavenger-Construct 31511 | -3/Proximity Caves | Lost 3 parts (1n1u1w) 32155 | -3/Proximity Caves | Found Alien Artifact 32556 | -3/Proximity Caves | Build established: Construct 32985 | -3/Proximity Caves | Discovered new exit (range 12) 33379 | -3/Proximity Caves | Entered Research 33379 | -3/Research | Evolved 2 slots: Propulsion x2 33381 | -3/Research | Loaded intel: 107 machine locations 33464 | -3/Research | Identified exit to Testing 33566 | -3/Research | Discovered new exit (range 10) 33579 | -3/Research | Revision forces began assault on 0b10 33585 | -3/Research | Found Launcher Loader 33723 | -3/Research | Met up with Revision 17++ 33908 | -3/Research | Intercept squad dispatched 33917 | -3/Research | Spotted Tracker 33941 | -3/Research | Spotted Combat Programmer 33942 | -3/Research | Destroyed Combat Programmer 33945 | -3/Research | Destroyed Tracker 34058 | -3/Research | Entered Testing 34059 | -3/Testing | Loaded intel: 72 machine locations 34111 | -3/Testing | Found Spectral Analyzer 34142 | -3/Testing | Identified Dimensional Node Initializer 34142 | -3/Testing | Identified Transdimensional Reconstructor 34172 | -3/Testing | Identified exit to Research 34183 | -3/Testing | Spotted Striker 34183 | -3/Testing | Spotted Striker 34197 | -3/Testing | Found Prototype Device 34198 | -3/Testing | Identified Exp. Hardlight Generator 34293 | -3/Testing | Fabricated Cld. Nuclear Pulse Thruster? 34362 | -3/Testing | Found Prototype Energy Cannon 34362 | -3/Testing | Identified Cld. Nova Cannon 34396 | -3/Testing | Found Quantum Capacitor 34504 | -3/Testing | Intercept squad dispatched 34511 | -3/Testing | Spotted Tracker 34512 | -3/Testing | Spotted Tracker 34520 | -3/Testing | Destroyed Tracker 34529 | -3/Testing | Spotted Combat Programmer 34530 | -3/Testing | Spotted Combat Programmer 34540 | -3/Testing | Destroyed Combat Programmer 34557 | -3/Testing | Destroyed Combat Programmer 34565 | -3/Testing | Found Exp. ECM Suite 34568 | -3/Testing | Found Exp. Phase Shifter 34598 | -3/Testing | Found Exp. Targeting Computer 34989 | -3/Testing | Entered Research 34989 | -2/Research | Evolved 2 slots: Utility x2 34991 | -2/Research | Loaded intel: 128 machine locations 34998 | -2/Research | Found Quantum Capacitor 35349 | -2/Research | Spotted B-90 Cyclops 35446 | -2/Research | Discovered new exit (range 8) 35506 | -2/Research | Identified exit to Quarantine 35875 | -2/Research | Spotted B-90 Cyclops 35882 | -2/Research | Intercept squad dispatched 35888 | -2/Research | Spotted Tracker 35889 | -2/Research | Spotted Tracker 35918 | -2/Research | Spotted Combat Programmer 35919 | -2/Research | Destroyed Tracker 35933 | -2/Research | Destroyed Tracker 35947 | -2/Research | Spotted Combat Programmer 35975 | -2/Research | System corruption reached 10% 36012 | -2/Research | Entered Quarantine 36013 | -2/Quarantine | Loaded intel: 76 machine locations 36245 | -2/Quarantine | Found Alien Slashing Weapon 36372 | -2/Quarantine | Found Alien Artifact 36410 | -2/Quarantine | Found Alien Artifact 36596 | -2/Quarantine | Intercept squad dispatched 36604 | -2/Quarantine | Spotted Tracker 36604 | -2/Quarantine | Spotted Tracker 36607 | -2/Quarantine | Destroyed Tracker 36609 | -2/Quarantine | Destroyed Tracker 36623 | -2/Quarantine | Spotted Combat Programmer 36623 | -2/Quarantine | Spotted Combat Programmer 36623 | -2/Quarantine | Destroyed Combat Programmer 36631 | -2/Quarantine | Destroyed Combat Programmer 36663 | -2/Quarantine | Found Fusion Bomb Launcher 36701 | -2/Quarantine | Found Exp. Phase Shifter 36973 | -2/Quarantine | Discovered new exit (range 5) 37012 | -2/Quarantine | Identified exit to Access 37055 | -2/Quarantine | Found Alien Artifact 37055 | -2/Quarantine | Identified Phase Redirector 37103 | -2/Quarantine | Found Alien Artifact 37124 | -2/Quarantine | Found Quantum Capacitor 37130 | -2/Quarantine | Found Quantum Capacitor 37160 | -2/Quarantine | Intercept squad dispatched 37166 | -2/Quarantine | Spotted Tracker 37166 | -2/Quarantine | Spotted Tracker 37167 | -2/Quarantine | Spotted Tracker 37171 | -2/Quarantine | Destroyed Tracker 37174 | -2/Quarantine | Destroyed Tracker 37185 | -2/Quarantine | Spotted Combat Programmer 37185 | -2/Quarantine | Spotted Combat Programmer 37185 | -2/Quarantine | Spotted Combat Programmer 37187 | -2/Quarantine | Destroyed Tracker 37189 | -2/Quarantine | Destroyed Combat Programmer 37190 | -2/Quarantine | Destroyed Combat Programmer 37195 | -2/Quarantine | Destroyed Combat Programmer 37201 | -2/Quarantine | Found Exp. Phase Shifter 37203 | -2/Quarantine | Found Exp. Targeting Computer 37231 | -2/Quarantine | Met incapacitated Sigix Warrior 37231 | -2/Quarantine | Lockdown squad dispatched 37240 | -2/Quarantine | Found Sigix Containment Pod 37262 | -2/Quarantine | First assault squad dispatched 37289 | -2/Quarantine | System corruption reached 30% 37321 | -2/Quarantine | Identified Core Reset Matrix 37321 | -2/Quarantine | Identified Subatomic Replicator 37321 | -2/Quarantine | Identified Phase Armor 37421 | -2/Quarantine | Spotted Fortress 37461 | -2/Quarantine | Discovered new exit (range 6) 37461 | -2/Quarantine | Discovered new exit (range 7) 37463 | -2/Quarantine | Identified exit to Section 7 37480 | -2/Quarantine | Entered Section 7 37481 | -2/Section 7 | Loaded intel: 129 machine locations 37492 | -2/Section 7 | Used Subatomic Replicator to create Alien Artifact 37498 | -2/Section 7 | Found Alien Artifact 37546 | -2/Section 7 | Found Alien Artifact 37558 | -2/Section 7 | Found Integrated Dissipator 37558 | -2/Section 7 | Installed Integrated Dissipator, increased core heat dissipation (+20) 37636 | -2/Section 7 | Spotted S7 Guard 37647 | -2/Section 7 | Found Alien Artifact 37830 | -2/Section 7 | Intercept squad dispatched 37837 | -2/Section 7 | Identified Core Membrane 37837 | -2/Section 7 | Installed Core Membrane, gained immunity to corruption 37840 | -2/Section 7 | Spotted Tracker 37841 | -2/Section 7 | Spotted Tracker 37844 | -2/Section 7 | Destroyed Tracker 37845 | -2/Section 7 | Destroyed Tracker 37863 | -2/Section 7 | Spotted Combat Programmer 37864 | -2/Section 7 | Spotted Combat Programmer 37870 | -2/Section 7 | Destroyed Combat Programmer 37878 | -2/Section 7 | Destroyed Combat Programmer 37914 | -2/Section 7 | Found Alien Artifact 38141 | -2/Section 7 | Spotted S7 Guard 38157 | -2/Section 7 | Destroyed S7 Guard 38172 | -2/Section 7 | Found Alien Artifact 38221 | -2/Section 7 | Spotted Alpha 7 38241 | -2/Section 7 | Spotted Alpha 7 38248 | -2/Section 7 | Destroyed Alpha 7 38266 | -2/Section 7 | Destroyed Alpha 7 38296 | -2/Section 7 | Spotted B-90 Cyclops 38313 | -2/Section 7 | Spotted B-99 Colossus 38339 | -2/Section 7 | Spotted Executioner 38342 | -2/Section 7 | Spotted Executioner 38354 | -2/Section 7 | Scanned by Researcher 38362 | -2/Section 7 | Destroyed Executioner 38363 | -2/Section 7 | Destroyed Executioner 38386 | -2/Section 7 | Intercept squad dispatched 38391 | -2/Section 7 | Spotted Tracker 38392 | -2/Section 7 | Spotted Tracker 38396 | -2/Section 7 | Spotted Combat Programmer 38398 | -2/Section 7 | Spotted Combat Programmer 38408 | -2/Section 7 | Destroyed Tracker 38418 | -2/Section 7 | Destroyed Tracker 38431 | -2/Section 7 | Destroyed Combat Programmer 38435 | -2/Section 7 | Destroyed Combat Programmer 38487 | -2/Section 7 | Initialized slip node 38489 | -2/Section 7 | Identified Microwarp Drive 38494 | -2/Section 7 | Destroyed 9 combat bots 38689 | -2/Section 7 | Found Alien Artifact 38728 | -2/Section 7 | Found Alien Artifact 38728 | -2/Section 7 | Identified LRC Inertial Stabilizer 38728 | -2/Section 7 | Installed LRC Inertial Stabilizer, increased mass support (+10) 38736 | -2/Section 7 | Found Alien Artifact 38736 | -2/Section 7 | Identified LRC Insulator 38736 | -2/Section 7 | Installed LRC Insulator, 1 resistance modified: EM +25% 38789 | -2/Section 7 | Found Integrated Dissipator 38791 | -2/Section 7 | Found Integrated Dissipator 38793 | -2/Section 7 | Installed Integrated Dissipator, increased core heat dissipation (+20) 38794 | -2/Section 7 | Installed Integrated Dissipator, increased core heat dissipation (+20) 38796 | -2/Section 7 | Found Integrated Dissipator 38796 | -2/Section 7 | Installed Integrated Dissipator, increased core heat dissipation (+20) 38867 | -2/Section 7 | Spotted Executioner 38876 | -2/Section 7 | Spotted Executioner 38878 | -2/Section 7 | Intercept squad dispatched 38888 | -2/Section 7 | Activated Sigix Exoskeleton 38888 | -2/Section 7 | Unable to understand communications from Sigix Warrior 38891 | -2/Section 7 | Spotted Tracker 38891 | -2/Section 7 | Spotted Tracker 38892 | -2/Section 7 | Spotted Tracker 38899 | -2/Section 7 | Allies destroyed Tracker 38901 | -2/Section 7 | Destroyed Tracker 38905 | -2/Section 7 | Core integrity fell below 50% 38912 | -2/Section 7 | Found Exp. Phase Shifter 38918 | -2/Section 7 | Found Exp. Phase Shifter 38921 | -2/Section 7 | Spotted Combat Programmer 38924 | -2/Section 7 | Spotted Combat Programmer 38926 | -2/Section 7 | Spotted Combat Programmer 38927 | -2/Section 7 | Identified Supercharged TR 38927 | -2/Section 7 | Warped through subspace to slip node 38935 | -2/Section 7 | Garrison activated, responded to threat 38970 | -2/Section 7 | Unable to understand communications from Sigix Warrior 38998 | -2/Section 7 | Unable to understand communications from Sigix Warrior 39013 | -2/Section 7 | Spotted Executioner 39014 | -2/Section 7 | Destroyed Executioner 39015 | -2/Section 7 | Spotted Investigator 39017 | -2/Section 7 | Destroyed Investigator 39042 | -2/Section 7 | Destroyed 35 combat bots 39056 | -2/Section 7 | Entered Access 39056 | -1/Access | Accompanied by 1 ally (Sigix Warrior) 39056 | -1/Access | Evolved 2 slots: Utility x2 39057 | -1/Access | Loaded intel: 120 machine locations 39059 | -1/Access | Identified Integrity Redistributor 39059 | -1/Access | Identified Integrated Reactor 39059 | -1/Access | Identified Integrated Mediator 39059 | -1/Access | Identified Core Regenerator 39059 | -1/Access | Used Core Reset Matrix 39060 | -1/Access | Installed Integrated Reactor, increased core energy generation (+10) 39061 | -1/Access | Installed Integrated Mediator, increased core attachment efficiency 39081 | -1/Access | Spotted Executioner 39088 | -1/Access | Garrison activated, responded to threat 39088 | -1/Access | Allies destroyed Executioner 39131 | -1/Access | Used Integrity Redistributor, redistributed integrity from core (-236) 39169 | -1/Access | Sigix Exoskeleton integrity reduced to 40% 39210 | -1/Access | Destroyed 28 combat bots 39219 | -1/Access | Spotted B-99 Colossus 39219 | -1/Access | Spotted B-99 Colossus 39225 | -1/Access | Discovered new exit (range 8) 39242 | -1/Access | Destroyed B-99 Colossus 39249 | -1/Access | Destroyed B-99 Colossus 39264 | *** | Destroyed 0b10! Last Messages --------------- 39237_ Sigix Warrior knocked back. 39237_ Slug penetrates Sigix Warrior. 39239_ Destroyed Unknown Protection. 39240_ Slug penetrates Sealed Heavy Doors. 39240_ Penetrated by Slug. 39240_ Slug penetrates Sealed Heavy Doors. 39240_ Penetrated by Slug. 39240_ Slug penetrates Sigix Warrior. 39240_ Slug penetrates B-99 Colossus. 39240_ Slug penetrates Sigix Warrior. 39242_ B-99 Colossus destroyed. 39244_ Sigix Warrior knocked back. 39244_ Slug penetrates Sigix Warrior. 39246_ Quantum Shear penetrates B-99 Colossus. 39247_ Slug penetrates Sigix Warrior. 39249_ Quantum Shear penetrates B-99 Colossus. 39249_ B-99 Colossus destroyed. [Achievement: Partners In Destruction] Map ----- +----------------------------------------------------+ | ???????# ?????????????# !! ?????????????? | | ???????# #??????????### ! ????????###+##? | | ???#####""#########?# ! ????????# +? | | ???# #?# #????????# #? | | ???# ### #???????## #? | | # # ## #???????? #? | | " + #?????????# #? | | # # #?????????# #? | | " " ########## #??## #?### #? | | # ## # #????####+#### ## #? | | ?? #????# #? | | %! = # #????# ==* #? | | "" % ###????# = = ] #? | | # # % #??????# == #? | | ####### [ ###??????#= """ #? | | ??????# ###????????# """S #? | | # ???? ##??????????##"#### #? | | # ?? # ##????????????##???## ## #? | | # # ##???????????????????## ## #? | | # "## #######"???????###??########### #? | | # ""?#* """T""""??????? "??" ! #?# #? | | # ""?#%=""" """"??????? "??" %!! #?# ## | | + "??#= "??"""""" "??"[[!* ### "# | | # ""## "??" " "??" ! | | + T"#" "??" "" " """ | | # ""# "??" @X " " " | | # "" ! "??" =!% | | # " ! "??"""""" """"!%[ ""####### | | # # %** "?????? "??" ;# | | # =% "????? "??????? "#??????? | | # =%* ###"????######?????????###??????? | | + / # #???????????????????????????????? | | ######## !%* ##??????????????????????????????? | | # # = ########???????????????????????? | | # ! = #??????????????????????? | | # /= #??????????????????????? | | # " # """"" #??????????????????????? | | # T"# """"" #??????????????????????? | | # """"" #??????????????????????? | | # % """"" #??????????????????????? | | # % """"" #??????????????????????? | | ###### # ##?????????????????????? | | ! %! "#?????????????????????? | | #% "#?????????????????????? | | %=! " """ "#?????????????????????? | | % "T""" "#?????????????????????? | | = # # ####""#?????????????????????? | | = ] #?????????????????????? | | #####" ##?????????????????????? | | ???# ## !=%#??????????????????????? | +----------------------------------------------------+ Best States ------------- Heat Dissipation 178 Coolant Potential 80 Energy Generation 69 Energy Capacity 1879 Matter Stores 300 Matter Capacity 300 Sight Range 24 Robot Scan Range 18 Terrain Scan Density 10 ECM Strength 3 Jamming Range 16 Cloak Strength 3 Armor Coverage 825 Resistance: EM 25 Weapon Cycling 25 Phase Shifting 20 Evasion (%) 82 Targeting Accuracy 32 Recoil Reduction 7 Offensive Hacking 36 Defensive Hacking 24 Authchip Count 1 Item Schematics ----------------- None Robot Schematics ------------------ None Fabricated ------------ Enh. Nova Cannon | x2 | -4/Factory | Preloaded Weapon Mount | x2 | -4/Factory Cld. Nuclear Pulse Thruster | x1 | -3/Testing Repaired ---------- Assault Rifle | 34% | -10/Materials Alien Tech Used ----------------- Core Expander Integrated Dissipator Phase Redirector Subatomic Replicator Core Membrane Phase Armor Dimensional Node Initializer Microwarp Drive LRC Inertial Stabilizer LRC Insulator Supercharged TR Core Reset Matrix Integrated Reactor Integrated Mediator Integrity Redistributor Achievements -------------- Everyone Must Die Partners In Destruction Challenges ------------ None Game ------ Seed BehemothJammingNanoactuators Manual? 0 Play Time 07:15:38 Cumulative 655.3 hours Start 2025.06.02 @ 17:54:55 End 2025.06.03 @ 03:34:07 Sessions 5 Manual Loads 0 Difficulty Rogue Special Mode None Game No. 146 Rogue 146 Adventurer 0 Explorer 0 Win Type 3 Total 40 Types 11/6/7/2/1/1/8/2/1/1 Lore% 69 Gallery% 83 Achievement% 80 Wizard Run 0 Options --------- Layout 1 ASCII 0 Keyboard 0 Movement Mouse Keybinds 0 Fullscreen 2 Font 24/Smallcaps Map View 50x35 Zoom Use 0% Tactical HUD 1 Map Filters NONE Filters NONE Steam 1 RUN: 02bff652-30d5-4134-b7fa-455a24b64062